Workbook

Sheet Introduction
B3: =Benchmarking!C1&" Data" -> 2023-24 Data | E3: ="Kent LA Schools' Benchmarking Data "&Benchmarking!C1 -> Kent LA Schools' Benchmarking Data 2023-24
E5: THIS BENCHMARKING SHEET IS FOR SECONDARY SCHOOLS ONLY
E7: ="The Benchmarking spreadsheet shows the income and expenditure information for the "&Benchmarking!C1&" financial year at subjective account level i.e. CFR codes. It shows all revenue income and expenditure including standards funds." -> The Benchmarking spreadsheet shows the income and expenditure information for the 2023-24 financial year at subjective account level i.e. CFR codes. It shows all revenue income and expenditure including standards funds.
E9: Capital income and expenditure is excluded.
E11: Enter your DFE number in the green shaded box, you can enter the last four digits or use the drop down box.
E13: The green drop down boxes allow you to select up to three Schools to benchmark against, the grey area allows you to benchmark against the average of the Schools you selected
E16: The sheet is formatted to print on one page.
E18: CFR = Consistent Financial Reporting

Sheet Benchmarking
B1: Subjective Analysis of | C1: 2023-24 | D1: Income and Expenditure Compared to Group and Phase Averages
E3: 11-16 | F3: Post 16 | H3: Select a school to Benchmark against | L3: Select a school to Benchmark against | P3: Select a school to Benchmark against
B4: Enter last 4 digits of your DfE No. | D4: Pupil Roll | E4: =IF(ISERROR(VLOOKUP(C4,'2023-24 Data'!$A$3:$C$19,3,0)),"",VLOOKUP(C4,'2023-24 Data'!$A$3:$C$19,3,0)+VLOOKUP(C4,'2023-24 Data'!$A$3:$E$19,5,0)) ->  | F4: =IF(ISERROR(VLOOKUP(C4,'2023-24 Data'!$A$3:$D$19,4,0)),"",VLOOKUP(C4,'2023-24 Data'!$A$3:$D$19,4,0)) -> 
I5: 11-16 | J5: Post 16 | M5: 11-16 | N5: Post 16 | Q5: 11-16 | R5: Post 16
B6: =B1&C1&D1 -> Subjective Analysis of 2023-24 Income and Expenditure Compared to Group and Phase Averages | H6: =IF(ISERROR(SUMIF(schools,H4,dfenums)),"",SUMIF(schools,H4,dfenums)) -> 0 | I6: =IF(ISERROR(VLOOKUP(H6,'2023-24 Data'!$A$3:$C$19,3,0)),"",VLOOKUP(H6,'2023-24 Data'!$A$3:$C$19,3,0)) ->  | J6: =IF(ISERROR(VLOOKUP(H6,'2023-24 Data'!$A$3:$D$19,4,0)),"",VLOOKUP(H6,'2023-24 Data'!$A$3:$D$19,4,0)) ->  | L6: =IF(ISERROR(SUMIF(schools,L4,dfenums)),"",SUMIF(schools,L4,dfenums)) -> 0 | M6: =IF(ISERROR(VLOOKUP(L6,'2023-24 Data'!$A$3:$C$19,3,0)),"",VLOOKUP(L6,'2023-24 Data'!$A$3:$C$19,3,0)) ->  | N6: =IF(ISERROR(VLOOKUP(L6,'2023-24 Data'!$A$3:$D$19,4,0)),"",VLOOKUP(L6,'2023-24 Data'!$A$3:$D$19,4,0)) ->  | P6: =IF(ISERROR(SUMIF(schools,P4,dfenums)),"",SUMIF(schools,P4,dfenums)) -> 0 | Q6: =IF(ISERROR(VLOOKUP(P6,'2023-24 Data'!$A$3:$C$19,3,0)),"",VLOOKUP(P6,'2023-24 Data'!$A$3:$C$19,3,0)) ->  | R6: =IF(ISERROR(VLOOKUP(P6,'2023-24 Data'!$A$3:$D$19,4,0)),"",VLOOKUP(P6,'2023-24 Data'!$A$3:$D$19,4,0)) -> 
H7: =IF(H4="","",IF(C4=H6,"This is your school","")) ->  | L7: =IF(L4="","",IF(L6=H6,"You have already selected this school",IF(L6=C4,"This is your school",""))) ->  | P7: =IF(P4="","",IF(OR(P6=L6,P6=H6),"You have already selected this school",IF(P6=C4,"This is your school",""))) ->  | T7: All Kent Secondary Schools
B9: =IF(C4="","",VLOOKUP($C$4,'2023-24 Data'!A3:B279,2,0)) ->  | D9: total Exp. / Inc. | E9: amount per Pupil | F9: % of total Exp. | H9: total Exp. / Inc. | I9: amount per Pupil | J9: % of total Exp. | L9: total Exp. / Inc. | M9: amount per Pupil | N9: % of total Exp. | P9: total Exp. / Inc. | Q9: amount per Pupil | R9: % of total Exp. | T9: amount per Pupil | U9: % of total Exp. | V9: % of Exp / total inc.
D10: £ | E10: £ | F10: % | H10: £ | I10: £ | J10: % | L10: £ | M10: £ | N10: % | P10: £ | Q10: £ | R10: % | T10: £ | U10: % | V10: %
B12: EXPENDITURE
B13: Teaching staff | C13: E01 | D13: =IF(ISERROR(INDEX('2023-24 Data'!$B$3:$BJ$19,MATCH($C$4,dfenums,0),MATCH($C13,'2023-24 Data'!$B$2:$BJ$2,0))),"",INDEX('2023-24 Data'!$B$3:$BJ$19,MATCH($C$4,dfenums,0),MATCH($C13,'2023-24 Data'!$B$2:$BJ$2,0))) ->  | E13: =IF($C$4>0,D13/($E$4+$F$4),"") ->  | F13: =IF($C$4>0,D13/$D$46,"") ->  | H13: =IF(ISERROR(INDEX('2023-24 Data'!$B$3:$BJ$19,MATCH($H$6,dfenums,0),MATCH($C13,'2023-24 Data'!$B$2:$BJ$2,0))),"",INDEX('2023-24 Data'!$B$3:$BJ$19,MATCH($H$6,dfenums,0),MATCH($C13,'2023-24 Data'!$B$2:$BJ$2,0))) ->  | I13: =IF($H$6>0,H13/($I$6+$J$6),"") ->  | J13: =IF($H$6>0,H13/$H$46,"") ->  | L13: =IF(ISERROR(INDEX('2023-24 Data'!$B$3:$BJ$19,MATCH($L$6,dfenums,0),MATCH($C13,'2023-24 Data'!$B$2:$BJ$2,0))),"",INDEX('2023-24 Data'!$B$3:$BJ$19,MATCH($L$6,dfenums,0),MATCH($C13,'2023-24 Data'!$B$2:$BJ$2,0))) ->  | M13: =IF($L$6>0,L13/($M$6+$N$6),"") ->  | N13: =IF($L$6>0,L13/$L$46,"") ->  | P13: =IF(ISERROR(INDEX('2023-24 Data'!$B$3:$BJ$19,MATCH($P$6,dfenums,0),MATCH($C13,'2023-24 Data'!$B$2:$BJ$2,0))),"",INDEX('2023-24 Data'!$B$3:$BJ$19,MATCH($P$6,dfenums,0),MATCH($C13,'2023-24 Data'!$B$2:$BJ$2,0))) ->  | Q13: =IF($P$6>0,P13/($Q$6+$R$6),"") ->  | R13: =IF($P$6>0,P13/$P$46,"") ->  | T13: =IF(ISERROR(SUM('2023-24 Data'!F$3:F$19)/SUM('2023-24 Data'!$C$3:$D$19)),"",SUM('2023-24 Data'!F$3:F$19)/SUM('2023-24 Data'!$C$3:$D$19)) -> 5132.468644 | U13: =IF(ISERROR(T13/$T$46),"",T13/$T$46) -> 0.5319560563 | V13: =IF(ISERROR(T13/-$T$72),"",T13/-$T$72) -> 0.005531126141
B14: Supply teaching staff | C14: E02 | D14: =IF(ISERROR(INDEX('2023-24 Data'!$B$3:$BJ$19,MATCH($C$4,dfenums,0),MATCH($C14,'2023-24 Data'!$B$2:$BJ$2,0))),"",INDEX('2023-24 Data'!$B$3:$BJ$19,MATCH($C$4,dfenums,0),MATCH($C14,'2023-24 Data'!$B$2:$BJ$2,0))) ->  | H14: =IF(ISERROR(INDEX('2023-24 Data'!$B$3:$BJ$19,MATCH($H$6,dfenums,0),MATCH($C14,'2023-24 Data'!$B$2:$BJ$2,0))),"",INDEX('2023-24 Data'!$B$3:$BJ$19,MATCH($H$6,dfenums,0),MATCH($C14,'2023-24 Data'!$B$2:$BJ$2,0))) ->  | I14: =IF($H$6>0,H14/($I$6+$J$6),"") ->  | J14: =IF($H$6>0,H14/$H$46,"") ->  | L14: =IF(ISERROR(INDEX('2023-24 Data'!$B$3:$BJ$19,MATCH($L$6,dfenums,0),MATCH($C14,'2023-24 Data'!$B$2:$BJ$2,0))),"",INDEX('2023-24 Data'!$B$3:$BJ$19,MATCH($L$6,dfenums,0),MATCH($C14,'2023-24 Data'!$B$2:$BJ$2,0))) ->  | M14: =IF($L$6>0,L14/($M$6+$N$6),"") ->  | N14: =IF($L$6>0,L14/$L$46,"") ->  | P14: =IF(ISERROR(INDEX('2023-24 Data'!$B$3:$BJ$19,MATCH($P$6,dfenums,0),MATCH($C14,'2023-24 Data'!$B$2:$BJ$2,0))),"",INDEX('2023-24 Data'!$B$3:$BJ$19,MATCH($P$6,dfenums,0),MATCH($C14,'2023-24 Data'!$B$2:$BJ$2,0))) ->  | Q14: =IF($P$6>0,P14/($Q$6+$R$6),"") ->  | R14: =IF($P$6>0,P14/$P$46,"") ->  | T14: =IF(ISERROR(SUM('2023-24 Data'!G$3:G$19)/SUM('2023-24 Data'!$C$3:$D$19)),"",SUM('2023-24 Data'!G$3:G$19)/SUM('2023-24 Data'!$C$3:$D$19)) -> 9.294188693 | U14: =IF(ISERROR(T14/$T$46),"",T14/$T$46) -> 0.0009632986203 | V14: =IF(ISERROR(T14/-$T$72),"",T14/-$T$72) -> 1.001610211e-05
B15: Education support staff | C15: E03 | D15: =IF(ISERROR(INDEX('2023-24 Data'!$B$3:$BJ$19,MATCH($C$4,dfenums,0),MATCH($C15,'2023-24 Data'!$B$2:$BJ$2,0))),"",INDEX('2023-24 Data'!$B$3:$BJ$19,MATCH($C$4,dfenums,0),MATCH($C15,'2023-24 Data'!$B$2:$BJ$2,0))) ->  | H15: =IF(ISERROR(INDEX('2023-24 Data'!$B$3:$BJ$19,MATCH($H$6,dfenums,0),MATCH($C15,'2023-24 Data'!$B$2:$BJ$2,0))),"",INDEX('2023-24 Data'!$B$3:$BJ$19,MATCH($H$6,dfenums,0),MATCH($C15,'2023-24 Data'!$B$2:$BJ$2,0))) ->  | L15: =IF(ISERROR(INDEX('2023-24 Data'!$B$3:$BJ$19,MATCH($L$6,dfenums,0),MATCH($C15,'2023-24 Data'!$B$2:$BJ$2,0))),"",INDEX('2023-24 Data'!$B$3:$BJ$19,MATCH($L$6,dfenums,0),MATCH($C15,'2023-24 Data'!$B$2:$BJ$2,0))) ->  | P15: =IF(ISERROR(INDEX('2023-24 Data'!$B$3:$BJ$19,MATCH($P$6,dfenums,0),MATCH($C15,'2023-24 Data'!$B$2:$BJ$2,0))),"",INDEX('2023-24 Data'!$B$3:$BJ$19,MATCH($P$6,dfenums,0),MATCH($C15,'2023-24 Data'!$B$2:$BJ$2,0))) ->  | T15: =IF(ISERROR(SUM('2023-24 Data'!H$3:H$19)/SUM('2023-24 Data'!$C$3:$D$19)),"",SUM('2023-24 Data'!H$3:H$19)/SUM('2023-24 Data'!$C$3:$D$19)) -> 999.7741813 | U15: 0.1036218568 | V15: 0.001077430276
B16: Premises staff | C16: E04 | D16: =IF(ISERROR(INDEX('2023-24 Data'!$B$3:$BJ$19,MATCH($C$4,dfenums,0),MATCH($C16,'2023-24 Data'!$B$2:$BJ$2,0))),"",INDEX('2023-24 Data'!$B$3:$BJ$19,MATCH($C$4,dfenums,0),MATCH($C16,'2023-24 Data'!$B$2:$BJ$2,0))) ->  | H16: =IF(ISERROR(INDEX('2023-24 Data'!$B$3:$BJ$19,MATCH($H$6,dfenums,0),MATCH($C16,'2023-24 Data'!$B$2:$BJ$2,0))),"",INDEX('2023-24 Data'!$B$3:$BJ$19,MATCH($H$6,dfenums,0),MATCH($C16,'2023-24 Data'!$B$2:$BJ$2,0))) ->  | L16: =IF(ISERROR(INDEX('2023-24 Data'!$B$3:$BJ$19,MATCH($L$6,dfenums,0),MATCH($C16,'2023-24 Data'!$B$2:$BJ$2,0))),"",INDEX('2023-24 Data'!$B$3:$BJ$19,MATCH($L$6,dfenums,0),MATCH($C16,'2023-24 Data'!$B$2:$BJ$2,0))) ->  | P16: =IF(ISERROR(INDEX('2023-24 Data'!$B$3:$BJ$19,MATCH($P$6,dfenums,0),MATCH($C16,'2023-24 Data'!$B$2:$BJ$2,0))),"",INDEX('2023-24 Data'!$B$3:$BJ$19,MATCH($P$6,dfenums,0),MATCH($C16,'2023-24 Data'!$B$2:$BJ$2,0))) ->  | T16: =IF(ISERROR(SUM('2023-24 Data'!I$3:I$19)/SUM('2023-24 Data'!$C$3:$D$19)),"",SUM('2023-24 Data'!I$3:I$19)/SUM('2023-24 Data'!$C$3:$D$19)) -> 196.7368665 | U16: 0.02039084404 | V16: 0.0002120181341
B17: Administrative and clerical staff | C17: E05 | D17: =IF(ISERROR(INDEX('2023-24 Data'!$B$3:$BJ$19,MATCH($C$4,dfenums,0),MATCH($C17,'2023-24 Data'!$B$2:$BJ$2,0))),"",INDEX('2023-24 Data'!$B$3:$BJ$19,MATCH($C$4,dfenums,0),MATCH($C17,'2023-24 Data'!$B$2:$BJ$2,0))) ->  | H17: =IF(ISERROR(INDEX('2023-24 Data'!$B$3:$BJ$19,MATCH($H$6,dfenums,0),MATCH($C17,'2023-24 Data'!$B$2:$BJ$2,0))),"",INDEX('2023-24 Data'!$B$3:$BJ$19,MATCH($H$6,dfenums,0),MATCH($C17,'2023-24 Data'!$B$2:$BJ$2,0))) ->  | L17: =IF(ISERROR(INDEX('2023-24 Data'!$B$3:$BJ$19,MATCH($L$6,dfenums,0),MATCH($C17,'2023-24 Data'!$B$2:$BJ$2,0))),"",INDEX('2023-24 Data'!$B$3:$BJ$19,MATCH($L$6,dfenums,0),MATCH($C17,'2023-24 Data'!$B$2:$BJ$2,0))) ->  | P17: =IF(ISERROR(INDEX('2023-24 Data'!$B$3:$BJ$19,MATCH($P$6,dfenums,0),MATCH($C17,'2023-24 Data'!$B$2:$BJ$2,0))),"",INDEX('2023-24 Data'!$B$3:$BJ$19,MATCH($P$6,dfenums,0),MATCH($C17,'2023-24 Data'!$B$2:$BJ$2,0))) ->  | T17: =IF(ISERROR(SUM('2023-24 Data'!J$3:J$19)/SUM('2023-24 Data'!$C$3:$D$19)),"",SUM('2023-24 Data'!J$3:J$19)/SUM('2023-24 Data'!$C$3:$D$19)) -> 497.3833093 | U17: 0.05155142331 | V17: 0.000536016879
B18: Catering staff | C18: E06 | D18: =IF(ISERROR(INDEX('2023-24 Data'!$B$3:$BJ$19,MATCH($C$4,dfenums,0),MATCH($C18,'2023-24 Data'!$B$2:$BJ$2,0))),"",INDEX('2023-24 Data'!$B$3:$BJ$19,MATCH($C$4,dfenums,0),MATCH($C18,'2023-24 Data'!$B$2:$BJ$2,0))) ->  | H18: =IF(ISERROR(INDEX('2023-24 Data'!$B$3:$BJ$19,MATCH($H$6,dfenums,0),MATCH($C18,'2023-24 Data'!$B$2:$BJ$2,0))),"",INDEX('2023-24 Data'!$B$3:$BJ$19,MATCH($H$6,dfenums,0),MATCH($C18,'2023-24 Data'!$B$2:$BJ$2,0))) ->  | L18: =IF(ISERROR(INDEX('2023-24 Data'!$B$3:$BJ$19,MATCH($L$6,dfenums,0),MATCH($C18,'2023-24 Data'!$B$2:$BJ$2,0))),"",INDEX('2023-24 Data'!$B$3:$BJ$19,MATCH($L$6,dfenums,0),MATCH($C18,'2023-24 Data'!$B$2:$BJ$2,0))) ->  | P18: =IF(ISERROR(INDEX('2023-24 Data'!$B$3:$BJ$19,MATCH($P$6,dfenums,0),MATCH($C18,'2023-24 Data'!$B$2:$BJ$2,0))),"",INDEX('2023-24 Data'!$B$3:$BJ$19,MATCH($P$6,dfenums,0),MATCH($C18,'2023-24 Data'!$B$2:$BJ$2,0))) ->  | T18: =IF(ISERROR(SUM('2023-24 Data'!K$3:K$19)/SUM('2023-24 Data'!$C$3:$D$19)),"",SUM('2023-24 Data'!K$3:K$19)/SUM('2023-24 Data'!$C$3:$D$19)) -> 50.98812472 | U18: 0.005284677535 | V18: 5.494855772e-05
B19: Cost of other staff | C19: E07 | D19: =IF(ISERROR(INDEX('2023-24 Data'!$B$3:$BJ$19,MATCH($C$4,dfenums,0),MATCH($C19,'2023-24 Data'!$B$2:$BJ$2,0))),"",INDEX('2023-24 Data'!$B$3:$BJ$19,MATCH($C$4,dfenums,0),MATCH($C19,'2023-24 Data'!$B$2:$BJ$2,0))) ->  | H19: =IF(ISERROR(INDEX('2023-24 Data'!$B$3:$BJ$19,MATCH($H$6,dfenums,0),MATCH($C19,'2023-24 Data'!$B$2:$BJ$2,0))),"",INDEX('2023-24 Data'!$B$3:$BJ$19,MATCH($H$6,dfenums,0),MATCH($C19,'2023-24 Data'!$B$2:$BJ$2,0))) ->  | L19: =IF(ISERROR(INDEX('2023-24 Data'!$B$3:$BJ$19,MATCH($L$6,dfenums,0),MATCH($C19,'2023-24 Data'!$B$2:$BJ$2,0))),"",INDEX('2023-24 Data'!$B$3:$BJ$19,MATCH($L$6,dfenums,0),MATCH($C19,'2023-24 Data'!$B$2:$BJ$2,0))) ->  | P19: =IF(ISERROR(INDEX('2023-24 Data'!$B$3:$BJ$19,MATCH($P$6,dfenums,0),MATCH($C19,'2023-24 Data'!$B$2:$BJ$2,0))),"",INDEX('2023-24 Data'!$B$3:$BJ$19,MATCH($P$6,dfenums,0),MATCH($C19,'2023-24 Data'!$B$2:$BJ$2,0))) ->  | T19: =IF(ISERROR(SUM('2023-24 Data'!L$3:L$19)/SUM('2023-24 Data'!$C$3:$D$19)),"",SUM('2023-24 Data'!L$3:L$19)/SUM('2023-24 Data'!$C$3:$D$19)) -> 33.06082587 | U19: 0.003426597952 | V19: 3.562878039e-05
B20: Indirect employee expenses | C20: E08 | D20: =IF(ISERROR(INDEX('2023-24 Data'!$B$3:$BJ$19,MATCH($C$4,dfenums,0),MATCH($C20,'2023-24 Data'!$B$2:$BJ$2,0))),"",INDEX('2023-24 Data'!$B$3:$BJ$19,MATCH($C$4,dfenums,0),MATCH($C20,'2023-24 Data'!$B$2:$BJ$2,0))) ->  | H20: =IF(ISERROR(INDEX('2023-24 Data'!$B$3:$BJ$19,MATCH($H$6,dfenums,0),MATCH($C20,'2023-24 Data'!$B$2:$BJ$2,0))),"",INDEX('2023-24 Data'!$B$3:$BJ$19,MATCH($H$6,dfenums,0),MATCH($C20,'2023-24 Data'!$B$2:$BJ$2,0))) ->  | L20: =IF(ISERROR(INDEX('2023-24 Data'!$B$3:$BJ$19,MATCH($L$6,dfenums,0),MATCH($C20,'2023-24 Data'!$B$2:$BJ$2,0))),"",INDEX('2023-24 Data'!$B$3:$BJ$19,MATCH($L$6,dfenums,0),MATCH($C20,'2023-24 Data'!$B$2:$BJ$2,0))) ->  | P20: =IF(ISERROR(INDEX('2023-24 Data'!$B$3:$BJ$19,MATCH($P$6,dfenums,0),MATCH($C20,'2023-24 Data'!$B$2:$BJ$2,0))),"",INDEX('2023-24 Data'!$B$3:$BJ$19,MATCH($P$6,dfenums,0),MATCH($C20,'2023-24 Data'!$B$2:$BJ$2,0))) ->  | T20: =IF(ISERROR(SUM('2023-24 Data'!M$3:M$19)/SUM('2023-24 Data'!$C$3:$D$19)),"",SUM('2023-24 Data'!M$3:M$19)/SUM('2023-24 Data'!$C$3:$D$19)) -> 43.90277708 | U20: 0.004550314824 | V20: 4.731286537e-05
B21: Development and training | C21: E09 | D21: =IF(ISERROR(INDEX('2023-24 Data'!$B$3:$BJ$19,MATCH($C$4,dfenums,0),MATCH($C21,'2023-24 Data'!$B$2:$BJ$2,0))),"",INDEX('2023-24 Data'!$B$3:$BJ$19,MATCH($C$4,dfenums,0),MATCH($C21,'2023-24 Data'!$B$2:$BJ$2,0))) ->  | H21: =IF(ISERROR(INDEX('2023-24 Data'!$B$3:$BJ$19,MATCH($H$6,dfenums,0),MATCH($C21,'2023-24 Data'!$B$2:$BJ$2,0))),"",INDEX('2023-24 Data'!$B$3:$BJ$19,MATCH($H$6,dfenums,0),MATCH($C21,'2023-24 Data'!$B$2:$BJ$2,0))) ->  | L21: =IF(ISERROR(INDEX('2023-24 Data'!$B$3:$BJ$19,MATCH($L$6,dfenums,0),MATCH($C21,'2023-24 Data'!$B$2:$BJ$2,0))),"",INDEX('2023-24 Data'!$B$3:$BJ$19,MATCH($L$6,dfenums,0),MATCH($C21,'2023-24 Data'!$B$2:$BJ$2,0))) ->  | P21: =IF(ISERROR(INDEX('2023-24 Data'!$B$3:$BJ$19,MATCH($P$6,dfenums,0),MATCH($C21,'2023-24 Data'!$B$2:$BJ$2,0))),"",INDEX('2023-24 Data'!$B$3:$BJ$19,MATCH($P$6,dfenums,0),MATCH($C21,'2023-24 Data'!$B$2:$BJ$2,0))) ->  | T21: =IF(ISERROR(SUM('2023-24 Data'!N$3:N$19)/SUM('2023-24 Data'!$C$3:$D$19)),"",SUM('2023-24 Data'!N$3:N$19)/SUM('2023-24 Data'!$C$3:$D$19)) -> 33.07930136 | U21: 0.00342851285 | V21: 3.564869095e-05
B22: Supply teacher insurance | C22: E10 | D22: =IF(ISERROR(INDEX('2023-24 Data'!$B$3:$BJ$19,MATCH($C$4,dfenums,0),MATCH($C22,'2023-24 Data'!$B$2:$BJ$2,0))),"",INDEX('2023-24 Data'!$B$3:$BJ$19,MATCH($C$4,dfenums,0),MATCH($C22,'2023-24 Data'!$B$2:$BJ$2,0))) ->  | H22: =IF(ISERROR(INDEX('2023-24 Data'!$B$3:$BJ$19,MATCH($H$6,dfenums,0),MATCH($C22,'2023-24 Data'!$B$2:$BJ$2,0))),"",INDEX('2023-24 Data'!$B$3:$BJ$19,MATCH($H$6,dfenums,0),MATCH($C22,'2023-24 Data'!$B$2:$BJ$2,0))) ->  | L22: =IF(ISERROR(INDEX('2023-24 Data'!$B$3:$BJ$19,MATCH($L$6,dfenums,0),MATCH($C22,'2023-24 Data'!$B$2:$BJ$2,0))),"",INDEX('2023-24 Data'!$B$3:$BJ$19,MATCH($L$6,dfenums,0),MATCH($C22,'2023-24 Data'!$B$2:$BJ$2,0))) ->  | P22: =IF(ISERROR(INDEX('2023-24 Data'!$B$3:$BJ$19,MATCH($P$6,dfenums,0),MATCH($C22,'2023-24 Data'!$B$2:$BJ$2,0))),"",INDEX('2023-24 Data'!$B$3:$BJ$19,MATCH($P$6,dfenums,0),MATCH($C22,'2023-24 Data'!$B$2:$BJ$2,0))) ->  | T22: =IF(ISERROR(SUM('2023-24 Data'!O$3:O$19)/SUM('2023-24 Data'!$C$3:$D$19)),"",SUM('2023-24 Data'!O$3:O$19)/SUM('2023-24 Data'!$C$3:$D$19)) -> 2.056274079 | U22: 0.0002131230653 | V22: 2.215992362e-06
B23: Staff related insurance | C23: E11 | D23: =IF(ISERROR(INDEX('2023-24 Data'!$B$3:$BJ$19,MATCH($C$4,dfenums,0),MATCH($C23,'2023-24 Data'!$B$2:$BJ$2,0))),"",INDEX('2023-24 Data'!$B$3:$BJ$19,MATCH($C$4,dfenums,0),MATCH($C23,'2023-24 Data'!$B$2:$BJ$2,0))) ->  | H23: =IF(ISERROR(INDEX('2023-24 Data'!$B$3:$BJ$19,MATCH($H$6,dfenums,0),MATCH($C23,'2023-24 Data'!$B$2:$BJ$2,0))),"",INDEX('2023-24 Data'!$B$3:$BJ$19,MATCH($H$6,dfenums,0),MATCH($C23,'2023-24 Data'!$B$2:$BJ$2,0))) ->  | L23: =IF(ISERROR(INDEX('2023-24 Data'!$B$3:$BJ$19,MATCH($L$6,dfenums,0),MATCH($C23,'2023-24 Data'!$B$2:$BJ$2,0))),"",INDEX('2023-24 Data'!$B$3:$BJ$19,MATCH($L$6,dfenums,0),MATCH($C23,'2023-24 Data'!$B$2:$BJ$2,0))) ->  | P23: =IF(ISERROR(INDEX('2023-24 Data'!$B$3:$BJ$19,MATCH($P$6,dfenums,0),MATCH($C23,'2023-24 Data'!$B$2:$BJ$2,0))),"",INDEX('2023-24 Data'!$B$3:$BJ$19,MATCH($P$6,dfenums,0),MATCH($C23,'2023-24 Data'!$B$2:$BJ$2,0))) ->  | T23: =IF(ISERROR(SUM('2023-24 Data'!P$3:P$19)/SUM('2023-24 Data'!$C$3:$D$19)),"",SUM('2023-24 Data'!P$3:P$19)/SUM('2023-24 Data'!$C$3:$D$19)) -> 26.23190216 | U23: 0.002718812367 | V23: 2.826942936e-05
B24: Building maintenance and improvement | C24: E12 | D24: =IF(ISERROR(INDEX('2023-24 Data'!$B$3:$BJ$19,MATCH($C$4,dfenums,0),MATCH($C24,'2023-24 Data'!$B$2:$BJ$2,0))),"",INDEX('2023-24 Data'!$B$3:$BJ$19,MATCH($C$4,dfenums,0),MATCH($C24,'2023-24 Data'!$B$2:$BJ$2,0))) ->  | H24: =IF(ISERROR(INDEX('2023-24 Data'!$B$3:$BJ$19,MATCH($H$6,dfenums,0),MATCH($C24,'2023-24 Data'!$B$2:$BJ$2,0))),"",INDEX('2023-24 Data'!$B$3:$BJ$19,MATCH($H$6,dfenums,0),MATCH($C24,'2023-24 Data'!$B$2:$BJ$2,0))) ->  | L24: =IF(ISERROR(INDEX('2023-24 Data'!$B$3:$BJ$19,MATCH($L$6,dfenums,0),MATCH($C24,'2023-24 Data'!$B$2:$BJ$2,0))),"",INDEX('2023-24 Data'!$B$3:$BJ$19,MATCH($L$6,dfenums,0),MATCH($C24,'2023-24 Data'!$B$2:$BJ$2,0))) ->  | P24: =IF(ISERROR(INDEX('2023-24 Data'!$B$3:$BJ$19,MATCH($P$6,dfenums,0),MATCH($C24,'2023-24 Data'!$B$2:$BJ$2,0))),"",INDEX('2023-24 Data'!$B$3:$BJ$19,MATCH($P$6,dfenums,0),MATCH($C24,'2023-24 Data'!$B$2:$BJ$2,0))) ->  | T24: =IF(ISERROR(SUM('2023-24 Data'!Q$3:Q$19)/SUM('2023-24 Data'!$C$3:$D$19)),"",SUM('2023-24 Data'!Q$3:Q$19)/SUM('2023-24 Data'!$C$3:$D$19)) -> 158.9966655 | U24: 0.01647925102 | V24: 0.0001713465145
B25: Grounds maintenance and improvement | C25: E13 | D25: =IF(ISERROR(INDEX('2023-24 Data'!$B$3:$BJ$19,MATCH($C$4,dfenums,0),MATCH($C25,'2023-24 Data'!$B$2:$BJ$2,0))),"",INDEX('2023-24 Data'!$B$3:$BJ$19,MATCH($C$4,dfenums,0),MATCH($C25,'2023-24 Data'!$B$2:$BJ$2,0))) ->  | H25: =IF(ISERROR(INDEX('2023-24 Data'!$B$3:$BJ$19,MATCH($H$6,dfenums,0),MATCH($C25,'2023-24 Data'!$B$2:$BJ$2,0))),"",INDEX('2023-24 Data'!$B$3:$BJ$19,MATCH($H$6,dfenums,0),MATCH($C25,'2023-24 Data'!$B$2:$BJ$2,0))) ->  | L25: =IF(ISERROR(INDEX('2023-24 Data'!$B$3:$BJ$19,MATCH($L$6,dfenums,0),MATCH($C25,'2023-24 Data'!$B$2:$BJ$2,0))),"",INDEX('2023-24 Data'!$B$3:$BJ$19,MATCH($L$6,dfenums,0),MATCH($C25,'2023-24 Data'!$B$2:$BJ$2,0))) ->  | P25: =IF(ISERROR(INDEX('2023-24 Data'!$B$3:$BJ$19,MATCH($P$6,dfenums,0),MATCH($C25,'2023-24 Data'!$B$2:$BJ$2,0))),"",INDEX('2023-24 Data'!$B$3:$BJ$19,MATCH($P$6,dfenums,0),MATCH($C25,'2023-24 Data'!$B$2:$BJ$2,0))) ->  | T25: =IF(ISERROR(SUM('2023-24 Data'!R$3:R$19)/SUM('2023-24 Data'!$C$3:$D$19)),"",SUM('2023-24 Data'!R$3:R$19)/SUM('2023-24 Data'!$C$3:$D$19)) -> 40.13172329 | U25: 0.004159462966 | V25: 4.324890012e-05
B26: Cleaning and caretaking | C26: E14 | D26: =IF(ISERROR(INDEX('2023-24 Data'!$B$3:$BJ$19,MATCH($C$4,dfenums,0),MATCH($C26,'2023-24 Data'!$B$2:$BJ$2,0))),"",INDEX('2023-24 Data'!$B$3:$BJ$19,MATCH($C$4,dfenums,0),MATCH($C26,'2023-24 Data'!$B$2:$BJ$2,0))) ->  | H26: =IF(ISERROR(INDEX('2023-24 Data'!$B$3:$BJ$19,MATCH($H$6,dfenums,0),MATCH($C26,'2023-24 Data'!$B$2:$BJ$2,0))),"",INDEX('2023-24 Data'!$B$3:$BJ$19,MATCH($H$6,dfenums,0),MATCH($C26,'2023-24 Data'!$B$2:$BJ$2,0))) ->  | L26: =IF(ISERROR(INDEX('2023-24 Data'!$B$3:$BJ$19,MATCH($L$6,dfenums,0),MATCH($C26,'2023-24 Data'!$B$2:$BJ$2,0))),"",INDEX('2023-24 Data'!$B$3:$BJ$19,MATCH($L$6,dfenums,0),MATCH($C26,'2023-24 Data'!$B$2:$BJ$2,0))) ->  | P26: =IF(ISERROR(INDEX('2023-24 Data'!$B$3:$BJ$19,MATCH($P$6,dfenums,0),MATCH($C26,'2023-24 Data'!$B$2:$BJ$2,0))),"",INDEX('2023-24 Data'!$B$3:$BJ$19,MATCH($P$6,dfenums,0),MATCH($C26,'2023-24 Data'!$B$2:$BJ$2,0))) ->  | T26: =IF(ISERROR(SUM('2023-24 Data'!S$3:S$19)/SUM('2023-24 Data'!$C$3:$D$19)),"",SUM('2023-24 Data'!S$3:S$19)/SUM('2023-24 Data'!$C$3:$D$19)) -> 92.77828398 | U26: 0.009616029532 | V26: 9.998471056e-05
B27: Water and sewerage | C27: E15 | D27: =IF(ISERROR(INDEX('2023-24 Data'!$B$3:$BJ$19,MATCH($C$4,dfenums,0),MATCH($C27,'2023-24 Data'!$B$2:$BJ$2,0))),"",INDEX('2023-24 Data'!$B$3:$BJ$19,MATCH($C$4,dfenums,0),MATCH($C27,'2023-24 Data'!$B$2:$BJ$2,0))) ->  | H27: =IF(ISERROR(INDEX('2023-24 Data'!$B$3:$BJ$19,MATCH($H$6,dfenums,0),MATCH($C27,'2023-24 Data'!$B$2:$BJ$2,0))),"",INDEX('2023-24 Data'!$B$3:$BJ$19,MATCH($H$6,dfenums,0),MATCH($C27,'2023-24 Data'!$B$2:$BJ$2,0))) ->  | L27: =IF(ISERROR(INDEX('2023-24 Data'!$B$3:$BJ$19,MATCH($L$6,dfenums,0),MATCH($C27,'2023-24 Data'!$B$2:$BJ$2,0))),"",INDEX('2023-24 Data'!$B$3:$BJ$19,MATCH($L$6,dfenums,0),MATCH($C27,'2023-24 Data'!$B$2:$BJ$2,0))) ->  | P27: =IF(ISERROR(INDEX('2023-24 Data'!$B$3:$BJ$19,MATCH($P$6,dfenums,0),MATCH($C27,'2023-24 Data'!$B$2:$BJ$2,0))),"",INDEX('2023-24 Data'!$B$3:$BJ$19,MATCH($P$6,dfenums,0),MATCH($C27,'2023-24 Data'!$B$2:$BJ$2,0))) ->  | T27: =IF(ISERROR(SUM('2023-24 Data'!T$3:T$19)/SUM('2023-24 Data'!$C$3:$D$19)),"",SUM('2023-24 Data'!T$3:T$19)/SUM('2023-24 Data'!$C$3:$D$19)) -> 22.70982241 | U27: 0.00235376549 | V27: 2.447377687e-05
B28: Energy | C28: E16 | D28: =IF(ISERROR(INDEX('2023-24 Data'!$B$3:$BJ$19,MATCH($C$4,dfenums,0),MATCH($C28,'2023-24 Data'!$B$2:$BJ$2,0))),"",INDEX('2023-24 Data'!$B$3:$BJ$19,MATCH($C$4,dfenums,0),MATCH($C28,'2023-24 Data'!$B$2:$BJ$2,0))) ->  | H28: =IF(ISERROR(INDEX('2023-24 Data'!$B$3:$BJ$19,MATCH($H$6,dfenums,0),MATCH($C28,'2023-24 Data'!$B$2:$BJ$2,0))),"",INDEX('2023-24 Data'!$B$3:$BJ$19,MATCH($H$6,dfenums,0),MATCH($C28,'2023-24 Data'!$B$2:$BJ$2,0))) ->  | L28: =IF(ISERROR(INDEX('2023-24 Data'!$B$3:$BJ$19,MATCH($L$6,dfenums,0),MATCH($C28,'2023-24 Data'!$B$2:$BJ$2,0))),"",INDEX('2023-24 Data'!$B$3:$BJ$19,MATCH($L$6,dfenums,0),MATCH($C28,'2023-24 Data'!$B$2:$BJ$2,0))) ->  | P28: =IF(ISERROR(INDEX('2023-24 Data'!$B$3:$BJ$19,MATCH($P$6,dfenums,0),MATCH($C28,'2023-24 Data'!$B$2:$BJ$2,0))),"",INDEX('2023-24 Data'!$B$3:$BJ$19,MATCH($P$6,dfenums,0),MATCH($C28,'2023-24 Data'!$B$2:$BJ$2,0))) ->  | T28: =IF(ISERROR(SUM('2023-24 Data'!U$3:U$19)/SUM('2023-24 Data'!$C$3:$D$19)),"",SUM('2023-24 Data'!U$3:U$19)/SUM('2023-24 Data'!$C$3:$D$19)) -> 213.4504227 | U28: 0.02212312494 | V28: 0.0002300298929
B29: Rates | C29: E17 | D29: =IF(ISERROR(INDEX('2023-24 Data'!$B$3:$BJ$19,MATCH($C$4,dfenums,0),MATCH($C29,'2023-24 Data'!$B$2:$BJ$2,0))),"",INDEX('2023-24 Data'!$B$3:$BJ$19,MATCH($C$4,dfenums,0),MATCH($C29,'2023-24 Data'!$B$2:$BJ$2,0))) ->  | H29: =IF(ISERROR(INDEX('2023-24 Data'!$B$3:$BJ$19,MATCH($H$6,dfenums,0),MATCH($C29,'2023-24 Data'!$B$2:$BJ$2,0))),"",INDEX('2023-24 Data'!$B$3:$BJ$19,MATCH($H$6,dfenums,0),MATCH($C29,'2023-24 Data'!$B$2:$BJ$2,0))) ->  | L29: =IF(ISERROR(INDEX('2023-24 Data'!$B$3:$BJ$19,MATCH($L$6,dfenums,0),MATCH($C29,'2023-24 Data'!$B$2:$BJ$2,0))),"",INDEX('2023-24 Data'!$B$3:$BJ$19,MATCH($L$6,dfenums,0),MATCH($C29,'2023-24 Data'!$B$2:$BJ$2,0))) ->  | P29: =IF(ISERROR(INDEX('2023-24 Data'!$B$3:$BJ$19,MATCH($P$6,dfenums,0),MATCH($C29,'2023-24 Data'!$B$2:$BJ$2,0))),"",INDEX('2023-24 Data'!$B$3:$BJ$19,MATCH($P$6,dfenums,0),MATCH($C29,'2023-24 Data'!$B$2:$BJ$2,0))) ->  | T29: =IF(ISERROR(SUM('2023-24 Data'!V$3:V$19)/SUM('2023-24 Data'!$C$3:$D$19)),"",SUM('2023-24 Data'!V$3:V$19)/SUM('2023-24 Data'!$C$3:$D$19)) -> 89.81031404 | U29: 0.009308413511 | V29: 9.678620761e-05
B30: Other occupation costs | C30: E18 | D30: =IF(ISERROR(INDEX('2023-24 Data'!$B$3:$BJ$19,MATCH($C$4,dfenums,0),MATCH($C30,'2023-24 Data'!$B$2:$BJ$2,0))),"",INDEX('2023-24 Data'!$B$3:$BJ$19,MATCH($C$4,dfenums,0),MATCH($C30,'2023-24 Data'!$B$2:$BJ$2,0))) ->  | H30: =IF(ISERROR(INDEX('2023-24 Data'!$B$3:$BJ$19,MATCH($H$6,dfenums,0),MATCH($C30,'2023-24 Data'!$B$2:$BJ$2,0))),"",INDEX('2023-24 Data'!$B$3:$BJ$19,MATCH($H$6,dfenums,0),MATCH($C30,'2023-24 Data'!$B$2:$BJ$2,0))) ->  | L30: =IF(ISERROR(INDEX('2023-24 Data'!$B$3:$BJ$19,MATCH($L$6,dfenums,0),MATCH($C30,'2023-24 Data'!$B$2:$BJ$2,0))),"",INDEX('2023-24 Data'!$B$3:$BJ$19,MATCH($L$6,dfenums,0),MATCH($C30,'2023-24 Data'!$B$2:$BJ$2,0))) ->  | P30: =IF(ISERROR(INDEX('2023-24 Data'!$B$3:$BJ$19,MATCH($P$6,dfenums,0),MATCH($C30,'2023-24 Data'!$B$2:$BJ$2,0))),"",INDEX('2023-24 Data'!$B$3:$BJ$19,MATCH($P$6,dfenums,0),MATCH($C30,'2023-24 Data'!$B$2:$BJ$2,0))) ->  | T30: =IF(ISERROR(SUM('2023-24 Data'!W$3:W$19)/SUM('2023-24 Data'!$C$3:$D$19)),"",SUM('2023-24 Data'!W$3:W$19)/SUM('2023-24 Data'!$C$3:$D$19)) -> 38.3727343 | U30: 0.003977152092 | V30: 4.135328406e-05
B31: Learning resources (not ICT equipment) | C31: E19 | D31: =IF(ISERROR(INDEX('2023-24 Data'!$B$3:$BJ$19,MATCH($C$4,dfenums,0),MATCH($C31,'2023-24 Data'!$B$2:$BJ$2,0))),"",INDEX('2023-24 Data'!$B$3:$BJ$19,MATCH($C$4,dfenums,0),MATCH($C31,'2023-24 Data'!$B$2:$BJ$2,0))) ->  | H31: =IF(ISERROR(INDEX('2023-24 Data'!$B$3:$BJ$19,MATCH($H$6,dfenums,0),MATCH($C31,'2023-24 Data'!$B$2:$BJ$2,0))),"",INDEX('2023-24 Data'!$B$3:$BJ$19,MATCH($H$6,dfenums,0),MATCH($C31,'2023-24 Data'!$B$2:$BJ$2,0))) ->  | L31: =IF(ISERROR(INDEX('2023-24 Data'!$B$3:$BJ$19,MATCH($L$6,dfenums,0),MATCH($C31,'2023-24 Data'!$B$2:$BJ$2,0))),"",INDEX('2023-24 Data'!$B$3:$BJ$19,MATCH($L$6,dfenums,0),MATCH($C31,'2023-24 Data'!$B$2:$BJ$2,0))) ->  | P31: =IF(ISERROR(INDEX('2023-24 Data'!$B$3:$BJ$19,MATCH($P$6,dfenums,0),MATCH($C31,'2023-24 Data'!$B$2:$BJ$2,0))),"",INDEX('2023-24 Data'!$B$3:$BJ$19,MATCH($P$6,dfenums,0),MATCH($C31,'2023-24 Data'!$B$2:$BJ$2,0))) ->  | T31: =IF(ISERROR(SUM('2023-24 Data'!X$3:X$19)/SUM('2023-24 Data'!$C$3:$D$19)),"",SUM('2023-24 Data'!X$3:X$19)/SUM('2023-24 Data'!$C$3:$D$19)) -> 527.5612611 | U31: 0.05467922502 | V31: 0.000568538862
B32: ICT learning resources | C32: E20 | D32: =IF(ISERROR(INDEX('2023-24 Data'!$B$3:$BJ$19,MATCH($C$4,dfenums,0),MATCH($C32,'2023-24 Data'!$B$2:$BJ$2,0))),"",INDEX('2023-24 Data'!$B$3:$BJ$19,MATCH($C$4,dfenums,0),MATCH($C32,'2023-24 Data'!$B$2:$BJ$2,0))) ->  | H32: =IF(ISERROR(INDEX('2023-24 Data'!$B$3:$BJ$19,MATCH($H$6,dfenums,0),MATCH($C32,'2023-24 Data'!$B$2:$BJ$2,0))),"",INDEX('2023-24 Data'!$B$3:$BJ$19,MATCH($H$6,dfenums,0),MATCH($C32,'2023-24 Data'!$B$2:$BJ$2,0))) ->  | L32: =IF(ISERROR(INDEX('2023-24 Data'!$B$3:$BJ$19,MATCH($L$6,dfenums,0),MATCH($C32,'2023-24 Data'!$B$2:$BJ$2,0))),"",INDEX('2023-24 Data'!$B$3:$BJ$19,MATCH($L$6,dfenums,0),MATCH($C32,'2023-24 Data'!$B$2:$BJ$2,0))) ->  | P32: =IF(ISERROR(INDEX('2023-24 Data'!$B$3:$BJ$19,MATCH($P$6,dfenums,0),MATCH($C32,'2023-24 Data'!$B$2:$BJ$2,0))),"",INDEX('2023-24 Data'!$B$3:$BJ$19,MATCH($P$6,dfenums,0),MATCH($C32,'2023-24 Data'!$B$2:$BJ$2,0))) ->  | T32: =IF(ISERROR(SUM('2023-24 Data'!Y$3:Y$19)/SUM('2023-24 Data'!$C$3:$D$19)),"",SUM('2023-24 Data'!Y$3:Y$19)/SUM('2023-24 Data'!$C$3:$D$19)) -> 137.1131843 | U32: 0.01421113188 | V32: 0.0001477632638
B33: Exam fees | C33: E21 | D33: =IF(ISERROR(INDEX('2023-24 Data'!$B$3:$BJ$19,MATCH($C$4,dfenums,0),MATCH($C33,'2023-24 Data'!$B$2:$BJ$2,0))),"",INDEX('2023-24 Data'!$B$3:$BJ$19,MATCH($C$4,dfenums,0),MATCH($C33,'2023-24 Data'!$B$2:$BJ$2,0))) ->  | H33: =IF(ISERROR(INDEX('2023-24 Data'!$B$3:$BJ$19,MATCH($H$6,dfenums,0),MATCH($C33,'2023-24 Data'!$B$2:$BJ$2,0))),"",INDEX('2023-24 Data'!$B$3:$BJ$19,MATCH($H$6,dfenums,0),MATCH($C33,'2023-24 Data'!$B$2:$BJ$2,0))) ->  | L33: =IF(ISERROR(INDEX('2023-24 Data'!$B$3:$BJ$19,MATCH($L$6,dfenums,0),MATCH($C33,'2023-24 Data'!$B$2:$BJ$2,0))),"",INDEX('2023-24 Data'!$B$3:$BJ$19,MATCH($L$6,dfenums,0),MATCH($C33,'2023-24 Data'!$B$2:$BJ$2,0))) ->  | P33: =IF(ISERROR(INDEX('2023-24 Data'!$B$3:$BJ$19,MATCH($P$6,dfenums,0),MATCH($C33,'2023-24 Data'!$B$2:$BJ$2,0))),"",INDEX('2023-24 Data'!$B$3:$BJ$19,MATCH($P$6,dfenums,0),MATCH($C33,'2023-24 Data'!$B$2:$BJ$2,0))) ->  | T33: =IF(ISERROR(SUM('2023-24 Data'!Z$3:Z$19)/SUM('2023-24 Data'!$C$3:$D$19)),"",SUM('2023-24 Data'!Z$3:Z$19)/SUM('2023-24 Data'!$C$3:$D$19)) -> 161.9382414 | U33: 0.01678413143 | V33: 0.0001745165733
B34: Administrative supplies | C34: E22 | D34: =IF(ISERROR(INDEX('2023-24 Data'!$B$3:$BJ$19,MATCH($C$4,dfenums,0),MATCH($C34,'2023-24 Data'!$B$2:$BJ$2,0))),"",INDEX('2023-24 Data'!$B$3:$BJ$19,MATCH($C$4,dfenums,0),MATCH($C34,'2023-24 Data'!$B$2:$BJ$2,0))) ->  | H34: =IF(ISERROR(INDEX('2023-24 Data'!$B$3:$BJ$19,MATCH($H$6,dfenums,0),MATCH($C34,'2023-24 Data'!$B$2:$BJ$2,0))),"",INDEX('2023-24 Data'!$B$3:$BJ$19,MATCH($H$6,dfenums,0),MATCH($C34,'2023-24 Data'!$B$2:$BJ$2,0))) ->  | L34: =IF(ISERROR(INDEX('2023-24 Data'!$B$3:$BJ$19,MATCH($L$6,dfenums,0),MATCH($C34,'2023-24 Data'!$B$2:$BJ$2,0))),"",INDEX('2023-24 Data'!$B$3:$BJ$19,MATCH($L$6,dfenums,0),MATCH($C34,'2023-24 Data'!$B$2:$BJ$2,0))) ->  | P34: =IF(ISERROR(INDEX('2023-24 Data'!$B$3:$BJ$19,MATCH($P$6,dfenums,0),MATCH($C34,'2023-24 Data'!$B$2:$BJ$2,0))),"",INDEX('2023-24 Data'!$B$3:$BJ$19,MATCH($P$6,dfenums,0),MATCH($C34,'2023-24 Data'!$B$2:$BJ$2,0))) ->  | T34: =IF(ISERROR(SUM('2023-24 Data'!AA$3:AA$19)/SUM('2023-24 Data'!$C$3:$D$19)),"",SUM('2023-24 Data'!AA$3:AA$19)/SUM('2023-24 Data'!$C$3:$D$19)) -> 76.25119299 | U34: 0.00790307486 | V34: 8.217390034e-05
B35: Other insurance premiums | C35: E23 | D35: =IF(ISERROR(INDEX('2023-24 Data'!$B$3:$BJ$19,MATCH($C$4,dfenums,0),MATCH($C35,'2023-24 Data'!$B$2:$BJ$2,0))),"",INDEX('2023-24 Data'!$B$3:$BJ$19,MATCH($C$4,dfenums,0),MATCH($C35,'2023-24 Data'!$B$2:$BJ$2,0))) ->  | H35: =IF(ISERROR(INDEX('2023-24 Data'!$B$3:$BJ$19,MATCH($H$6,dfenums,0),MATCH($C35,'2023-24 Data'!$B$2:$BJ$2,0))),"",INDEX('2023-24 Data'!$B$3:$BJ$19,MATCH($H$6,dfenums,0),MATCH($C35,'2023-24 Data'!$B$2:$BJ$2,0))) ->  | L35: =IF(ISERROR(INDEX('2023-24 Data'!$B$3:$BJ$19,MATCH($L$6,dfenums,0),MATCH($C35,'2023-24 Data'!$B$2:$BJ$2,0))),"",INDEX('2023-24 Data'!$B$3:$BJ$19,MATCH($L$6,dfenums,0),MATCH($C35,'2023-24 Data'!$B$2:$BJ$2,0))) ->  | P35: =IF(ISERROR(INDEX('2023-24 Data'!$B$3:$BJ$19,MATCH($P$6,dfenums,0),MATCH($C35,'2023-24 Data'!$B$2:$BJ$2,0))),"",INDEX('2023-24 Data'!$B$3:$BJ$19,MATCH($P$6,dfenums,0),MATCH($C35,'2023-24 Data'!$B$2:$BJ$2,0))) ->  | T35: =IF(ISERROR(SUM('2023-24 Data'!AB$3:AB$19)/SUM('2023-24 Data'!$C$3:$D$19)),"",SUM('2023-24 Data'!AB$3:AB$19)/SUM('2023-24 Data'!$C$3:$D$19)) -> 49.57931322 | U35: 0.005138660898 | V35: 5.34303187e-05
B36: Special facilities | C36: E24 | D36: =IF(ISERROR(INDEX('2023-24 Data'!$B$3:$BJ$19,MATCH($C$4,dfenums,0),MATCH($C36,'2023-24 Data'!$B$2:$BJ$2,0))),"",INDEX('2023-24 Data'!$B$3:$BJ$19,MATCH($C$4,dfenums,0),MATCH($C36,'2023-24 Data'!$B$2:$BJ$2,0))) ->  | H36: =IF(ISERROR(INDEX('2023-24 Data'!$B$3:$BJ$19,MATCH($H$6,dfenums,0),MATCH($C36,'2023-24 Data'!$B$2:$BJ$2,0))),"",INDEX('2023-24 Data'!$B$3:$BJ$19,MATCH($H$6,dfenums,0),MATCH($C36,'2023-24 Data'!$B$2:$BJ$2,0))) ->  | L36: =IF(ISERROR(INDEX('2023-24 Data'!$B$3:$BJ$19,MATCH($L$6,dfenums,0),MATCH($C36,'2023-24 Data'!$B$2:$BJ$2,0))),"",INDEX('2023-24 Data'!$B$3:$BJ$19,MATCH($L$6,dfenums,0),MATCH($C36,'2023-24 Data'!$B$2:$BJ$2,0))) ->  | P36: =IF(ISERROR(INDEX('2023-24 Data'!$B$3:$BJ$19,MATCH($P$6,dfenums,0),MATCH($C36,'2023-24 Data'!$B$2:$BJ$2,0))),"",INDEX('2023-24 Data'!$B$3:$BJ$19,MATCH($P$6,dfenums,0),MATCH($C36,'2023-24 Data'!$B$2:$BJ$2,0))) ->  | T36: =IF(ISERROR(SUM('2023-24 Data'!AC$3:AC$19)/SUM('2023-24 Data'!$C$3:$D$19)),"",SUM('2023-24 Data'!AC$3:AC$19)/SUM('2023-24 Data'!$C$3:$D$19)) -> 324.8095931 | U36: 0.03366497532 | V36: 0.000350038735
B37: Catering supplies | C37: E25 | D37: =IF(ISERROR(INDEX('2023-24 Data'!$B$3:$BJ$19,MATCH($C$4,dfenums,0),MATCH($C37,'2023-24 Data'!$B$2:$BJ$2,0))),"",INDEX('2023-24 Data'!$B$3:$BJ$19,MATCH($C$4,dfenums,0),MATCH($C37,'2023-24 Data'!$B$2:$BJ$2,0))) ->  | H37: =IF(ISERROR(INDEX('2023-24 Data'!$B$3:$BJ$19,MATCH($H$6,dfenums,0),MATCH($C37,'2023-24 Data'!$B$2:$BJ$2,0))),"",INDEX('2023-24 Data'!$B$3:$BJ$19,MATCH($H$6,dfenums,0),MATCH($C37,'2023-24 Data'!$B$2:$BJ$2,0))) ->  | L37: =IF(ISERROR(INDEX('2023-24 Data'!$B$3:$BJ$19,MATCH($L$6,dfenums,0),MATCH($C37,'2023-24 Data'!$B$2:$BJ$2,0))),"",INDEX('2023-24 Data'!$B$3:$BJ$19,MATCH($L$6,dfenums,0),MATCH($C37,'2023-24 Data'!$B$2:$BJ$2,0))) ->  | P37: =IF(ISERROR(INDEX('2023-24 Data'!$B$3:$BJ$19,MATCH($P$6,dfenums,0),MATCH($C37,'2023-24 Data'!$B$2:$BJ$2,0))),"",INDEX('2023-24 Data'!$B$3:$BJ$19,MATCH($P$6,dfenums,0),MATCH($C37,'2023-24 Data'!$B$2:$BJ$2,0))) ->  | T37: =IF(ISERROR(SUM('2023-24 Data'!AD$3:AD$19)/SUM('2023-24 Data'!$C$3:$D$19)),"",SUM('2023-24 Data'!AD$3:AD$19)/SUM('2023-24 Data'!$C$3:$D$19)) -> 141.414991 | U37: 0.01465699377 | V37: 0.0001523992075
B38: Agency supply teaching staff | C38: E26 | D38: =IF(ISERROR(INDEX('2023-24 Data'!$B$3:$BJ$19,MATCH($C$4,dfenums,0),MATCH($C38,'2023-24 Data'!$B$2:$BJ$2,0))),"",INDEX('2023-24 Data'!$B$3:$BJ$19,MATCH($C$4,dfenums,0),MATCH($C38,'2023-24 Data'!$B$2:$BJ$2,0))) ->  | H38: =IF(ISERROR(INDEX('2023-24 Data'!$B$3:$BJ$19,MATCH($H$6,dfenums,0),MATCH($C38,'2023-24 Data'!$B$2:$BJ$2,0))),"",INDEX('2023-24 Data'!$B$3:$BJ$19,MATCH($H$6,dfenums,0),MATCH($C38,'2023-24 Data'!$B$2:$BJ$2,0))) ->  | L38: =IF(ISERROR(INDEX('2023-24 Data'!$B$3:$BJ$19,MATCH($L$6,dfenums,0),MATCH($C38,'2023-24 Data'!$B$2:$BJ$2,0))),"",INDEX('2023-24 Data'!$B$3:$BJ$19,MATCH($L$6,dfenums,0),MATCH($C38,'2023-24 Data'!$B$2:$BJ$2,0))) ->  | P38: =IF(ISERROR(INDEX('2023-24 Data'!$B$3:$BJ$19,MATCH($P$6,dfenums,0),MATCH($C38,'2023-24 Data'!$B$2:$BJ$2,0))),"",INDEX('2023-24 Data'!$B$3:$BJ$19,MATCH($P$6,dfenums,0),MATCH($C38,'2023-24 Data'!$B$2:$BJ$2,0))) ->  | T38: =IF(ISERROR(SUM('2023-24 Data'!AE$3:AE$19)/SUM('2023-24 Data'!$C$3:$D$19)),"",SUM('2023-24 Data'!AE$3:AE$19)/SUM('2023-24 Data'!$C$3:$D$19)) -> 100.0763666 | U38: 0.01037244121 | V38: 0.0001078496618
B39: Bought in professional services - curriculum | C39: E27 | D39: =IF(ISERROR(INDEX('2023-24 Data'!$B$3:$BJ$19,MATCH($C$4,dfenums,0),MATCH($C39,'2023-24 Data'!$B$2:$BJ$2,0))),"",INDEX('2023-24 Data'!$B$3:$BJ$19,MATCH($C$4,dfenums,0),MATCH($C39,'2023-24 Data'!$B$2:$BJ$2,0))) ->  | H39: =IF(ISERROR(INDEX('2023-24 Data'!$B$3:$BJ$19,MATCH($H$6,dfenums,0),MATCH($C39,'2023-24 Data'!$B$2:$BJ$2,0))),"",INDEX('2023-24 Data'!$B$3:$BJ$19,MATCH($H$6,dfenums,0),MATCH($C39,'2023-24 Data'!$B$2:$BJ$2,0))) ->  | L39: =IF(ISERROR(INDEX('2023-24 Data'!$B$3:$BJ$19,MATCH($L$6,dfenums,0),MATCH($C39,'2023-24 Data'!$B$2:$BJ$2,0))),"",INDEX('2023-24 Data'!$B$3:$BJ$19,MATCH($L$6,dfenums,0),MATCH($C39,'2023-24 Data'!$B$2:$BJ$2,0))) ->  | P39: =IF(ISERROR(INDEX('2023-24 Data'!$B$3:$BJ$19,MATCH($P$6,dfenums,0),MATCH($C39,'2023-24 Data'!$B$2:$BJ$2,0))),"",INDEX('2023-24 Data'!$B$3:$BJ$19,MATCH($P$6,dfenums,0),MATCH($C39,'2023-24 Data'!$B$2:$BJ$2,0))) ->  | T39: =IF(ISERROR(SUM('2023-24 Data'!AF$3:AF$19)/SUM('2023-24 Data'!$C$3:$D$19)),"",SUM('2023-24 Data'!AF$3:AF$19)/SUM('2023-24 Data'!$C$3:$D$19)) -> 127.0804717 | U39: 0.01317128876 | V39: 0.0001369512739
B40: Bought in professional services other | C40: E28 | D40: =IF(ISERROR(INDEX('2023-24 Data'!$B$3:$BJ$19,MATCH($C$4,dfenums,0),MATCH($C40,'2023-24 Data'!$B$2:$BJ$2,0))),"",INDEX('2023-24 Data'!$B$3:$BJ$19,MATCH($C$4,dfenums,0),MATCH($C40,'2023-24 Data'!$B$2:$BJ$2,0))) ->  | E40: =IF($C$4>0,D40/($E$4+$F$4),"") ->  | F40: =IF($C$4>0,D40/$D$46,"") ->  | H40: =IF(ISERROR(INDEX('2023-24 Data'!$B$3:$BJ$19,MATCH($H$6,dfenums,0),MATCH($C40,'2023-24 Data'!$B$2:$BJ$2,0))),"",INDEX('2023-24 Data'!$B$3:$BJ$19,MATCH($H$6,dfenums,0),MATCH($C40,'2023-24 Data'!$B$2:$BJ$2,0))) ->  | I40: =IF($H$6>0,H40/($I$6+$J$6),"") ->  | J40: =IF($H$6>0,H40/$H$46,"") ->  | L40: =IF(ISERROR(INDEX('2023-24 Data'!$B$3:$BJ$19,MATCH($L$6,dfenums,0),MATCH($C40,'2023-24 Data'!$B$2:$BJ$2,0))),"",INDEX('2023-24 Data'!$B$3:$BJ$19,MATCH($L$6,dfenums,0),MATCH($C40,'2023-24 Data'!$B$2:$BJ$2,0))) ->  | M40: =IF($L$6>0,L40/($M$6+$N$6),"") ->  | N40: =IF($L$6>0,L40/$L$46,"") ->  | P40: =IF(ISERROR(INDEX('2023-24 Data'!$B$3:$BJ$19,MATCH($P$6,dfenums,0),MATCH($C40,'2023-24 Data'!$B$2:$BJ$2,0))),"",INDEX('2023-24 Data'!$B$3:$BJ$19,MATCH($P$6,dfenums,0),MATCH($C40,'2023-24 Data'!$B$2:$BJ$2,0))) ->  | Q40: =IF($P$6>0,P40/($Q$6+$R$6),"") ->  | R40: =IF($P$6>0,P40/$P$46,"") ->  | T40: =IF(ISERROR(SUM('2023-24 Data'!AG$3:AG$19)/SUM('2023-24 Data'!$C$3:$D$19)),"",SUM('2023-24 Data'!AG$3:AG$19)/SUM('2023-24 Data'!$C$3:$D$19)) -> 196.4801638 | U40: =IF(ISERROR(T40/$T$46),"",T40/$T$46) -> 0.02036423802 | V40: =IF(ISERROR(T40/-$T$72),"",T40/-$T$72) -> 0.0002117414924
B41: Bought in professional services other | C41: E28b | D41: =IF(ISERROR(INDEX('2023-24 Data'!$B$3:$BJ$19,MATCH($C$4,dfenums,0),MATCH($C41,'2023-24 Data'!$B$2:$BJ$2,0))),"",INDEX('2023-24 Data'!$B$3:$BJ$19,MATCH($C$4,dfenums,0),MATCH($C41,'2023-24 Data'!$B$2:$BJ$2,0))) ->  | H41: =IF(ISERROR(INDEX('2023-24 Data'!$B$3:$BJ$19,MATCH($H$6,dfenums,0),MATCH($C41,'2023-24 Data'!$B$2:$BJ$2,0))),"",INDEX('2023-24 Data'!$B$3:$BJ$19,MATCH($H$6,dfenums,0),MATCH($C41,'2023-24 Data'!$B$2:$BJ$2,0))) ->  | L41: =IF(ISERROR(INDEX('2023-24 Data'!$B$3:$BJ$19,MATCH($L$6,dfenums,0),MATCH($C41,'2023-24 Data'!$B$2:$BJ$2,0))),"",INDEX('2023-24 Data'!$B$3:$BJ$19,MATCH($L$6,dfenums,0),MATCH($C41,'2023-24 Data'!$B$2:$BJ$2,0))) ->  | P41: =IF(ISERROR(INDEX('2023-24 Data'!$B$3:$BJ$19,MATCH($P$6,dfenums,0),MATCH($C41,'2023-24 Data'!$B$2:$BJ$2,0))),"",INDEX('2023-24 Data'!$B$3:$BJ$19,MATCH($P$6,dfenums,0),MATCH($C41,'2023-24 Data'!$B$2:$BJ$2,0))) ->  | T41: =IF(ISERROR(SUM('2023-24 Data'!AH$3:AH$19)/SUM('2023-24 Data'!$C$3:$D$19)),"",SUM('2023-24 Data'!AH$3:AH$19)/SUM('2023-24 Data'!$C$3:$D$19)) -> 0 | U41: 0 | V41: 0
B42: Loan interest | C42: E29 | D42: =IF(ISERROR(INDEX('2023-24 Data'!$B$3:$BJ$19,MATCH($C$4,dfenums,0),MATCH($C42,'2023-24 Data'!$B$2:$BJ$2,0))),"",INDEX('2023-24 Data'!$B$3:$BJ$19,MATCH($C$4,dfenums,0),MATCH($C42,'2023-24 Data'!$B$2:$BJ$2,0))) ->  | H42: =IF(ISERROR(INDEX('2023-24 Data'!$B$3:$BJ$19,MATCH($H$6,dfenums,0),MATCH($C42,'2023-24 Data'!$B$2:$BJ$2,0))),"",INDEX('2023-24 Data'!$B$3:$BJ$19,MATCH($H$6,dfenums,0),MATCH($C42,'2023-24 Data'!$B$2:$BJ$2,0))) ->  | L42: =IF(ISERROR(INDEX('2023-24 Data'!$B$3:$BJ$19,MATCH($L$6,dfenums,0),MATCH($C42,'2023-24 Data'!$B$2:$BJ$2,0))),"",INDEX('2023-24 Data'!$B$3:$BJ$19,MATCH($L$6,dfenums,0),MATCH($C42,'2023-24 Data'!$B$2:$BJ$2,0))) ->  | P42: =IF(ISERROR(INDEX('2023-24 Data'!$B$3:$BJ$19,MATCH($P$6,dfenums,0),MATCH($C42,'2023-24 Data'!$B$2:$BJ$2,0))),"",INDEX('2023-24 Data'!$B$3:$BJ$19,MATCH($P$6,dfenums,0),MATCH($C42,'2023-24 Data'!$B$2:$BJ$2,0))) ->  | T42: =IF(ISERROR(SUM('2023-24 Data'!AI$3:AI$19)/SUM('2023-24 Data'!$C$3:$D$19)),"",SUM('2023-24 Data'!AI$3:AI$19)/SUM('2023-24 Data'!$C$3:$D$19)) -> 8.948996506 | U42: 0.0009275210857 | V42: 9.644097595e-06
B43: Direct revenue financing (rev contrib. to cap) | C43: E30 | D43: =IF(ISERROR(INDEX('2023-24 Data'!$B$3:$BJ$19,MATCH($C$4,dfenums,0),MATCH($C43,'2023-24 Data'!$B$2:$BJ$2,0))),"",INDEX('2023-24 Data'!$B$3:$BJ$19,MATCH($C$4,dfenums,0),MATCH($C43,'2023-24 Data'!$B$2:$BJ$2,0))) ->  | H43: =IF(ISERROR(INDEX('2023-24 Data'!$B$3:$BJ$19,MATCH($H$6,dfenums,0),MATCH($C43,'2023-24 Data'!$B$2:$BJ$2,0))),"",INDEX('2023-24 Data'!$B$3:$BJ$19,MATCH($H$6,dfenums,0),MATCH($C43,'2023-24 Data'!$B$2:$BJ$2,0))) ->  | L43: =IF(ISERROR(INDEX('2023-24 Data'!$B$3:$BJ$19,MATCH($L$6,dfenums,0),MATCH($C43,'2023-24 Data'!$B$2:$BJ$2,0))),"",INDEX('2023-24 Data'!$B$3:$BJ$19,MATCH($L$6,dfenums,0),MATCH($C43,'2023-24 Data'!$B$2:$BJ$2,0))) ->  | P43: =IF(ISERROR(INDEX('2023-24 Data'!$B$3:$BJ$19,MATCH($P$6,dfenums,0),MATCH($C43,'2023-24 Data'!$B$2:$BJ$2,0))),"",INDEX('2023-24 Data'!$B$3:$BJ$19,MATCH($P$6,dfenums,0),MATCH($C43,'2023-24 Data'!$B$2:$BJ$2,0))) ->  | T43: =IF(ISERROR(SUM('2023-24 Data'!AJ$3:AJ$19)/SUM('2023-24 Data'!$C$3:$D$19)),"",SUM('2023-24 Data'!AJ$3:AJ$19)/SUM('2023-24 Data'!$C$3:$D$19)) -> 115.8142722 | U43: 0.01200360057 | V43: 0.0001248099878
B44: Community focussed extended school staff | C44: E31 | D44: =IF(ISERROR(INDEX('2023-24 Data'!$B$3:$BJ$19,MATCH($C$4,dfenums,0),MATCH($C44,'2023-24 Data'!$B$2:$BJ$2,0))),"",INDEX('2023-24 Data'!$B$3:$BJ$19,MATCH($C$4,dfenums,0),MATCH($C44,'2023-24 Data'!$B$2:$BJ$2,0))) ->  | H44: =IF(ISERROR(INDEX('2023-24 Data'!$B$3:$BJ$19,MATCH($H$6,dfenums,0),MATCH($C44,'2023-24 Data'!$B$2:$BJ$2,0))),"",INDEX('2023-24 Data'!$B$3:$BJ$19,MATCH($H$6,dfenums,0),MATCH($C44,'2023-24 Data'!$B$2:$BJ$2,0))) ->  | L44: =IF(ISERROR(INDEX('2023-24 Data'!$B$3:$BJ$19,MATCH($L$6,dfenums,0),MATCH($C44,'2023-24 Data'!$B$2:$BJ$2,0))),"",INDEX('2023-24 Data'!$B$3:$BJ$19,MATCH($L$6,dfenums,0),MATCH($C44,'2023-24 Data'!$B$2:$BJ$2,0))) ->  | P44: =IF(ISERROR(INDEX('2023-24 Data'!$B$3:$BJ$19,MATCH($P$6,dfenums,0),MATCH($C44,'2023-24 Data'!$B$2:$BJ$2,0))),"",INDEX('2023-24 Data'!$B$3:$BJ$19,MATCH($P$6,dfenums,0),MATCH($C44,'2023-24 Data'!$B$2:$BJ$2,0))) ->  | T44: =IF(ISERROR(SUM('2023-24 Data'!AK$3:AK$19)/SUM('2023-24 Data'!$C$3:$D$19)),"",SUM('2023-24 Data'!AK$3:AK$19)/SUM('2023-24 Data'!$C$3:$D$19)) -> 0 | U44: 0 | V44: 0
B45: Community focussed extended school costs | C45: E32 | D45: =IF(ISERROR(INDEX('2023-24 Data'!$B$3:$BJ$19,MATCH($C$4,dfenums,0),MATCH($C45,'2023-24 Data'!$B$2:$BJ$2,0))),"",INDEX('2023-24 Data'!$B$3:$BJ$19,MATCH($C$4,dfenums,0),MATCH($C45,'2023-24 Data'!$B$2:$BJ$2,0))) ->  | H45: =IF(ISERROR(INDEX('2023-24 Data'!$B$3:$BJ$19,MATCH($H$6,dfenums,0),MATCH($C45,'2023-24 Data'!$B$2:$BJ$2,0))),"",INDEX('2023-24 Data'!$B$3:$BJ$19,MATCH($H$6,dfenums,0),MATCH($C45,'2023-24 Data'!$B$2:$BJ$2,0))) ->  | L45: =IF(ISERROR(INDEX('2023-24 Data'!$B$3:$BJ$19,MATCH($L$6,dfenums,0),MATCH($C45,'2023-24 Data'!$B$2:$BJ$2,0))),"",INDEX('2023-24 Data'!$B$3:$BJ$19,MATCH($L$6,dfenums,0),MATCH($C45,'2023-24 Data'!$B$2:$BJ$2,0))) ->  | P45: =IF(ISERROR(INDEX('2023-24 Data'!$B$3:$BJ$19,MATCH($P$6,dfenums,0),MATCH($C45,'2023-24 Data'!$B$2:$BJ$2,0))),"",INDEX('2023-24 Data'!$B$3:$BJ$19,MATCH($P$6,dfenums,0),MATCH($C45,'2023-24 Data'!$B$2:$BJ$2,0))) ->  | T45: =IF(ISERROR(SUM('2023-24 Data'!AL$3:AL$19)/SUM('2023-24 Data'!$C$3:$D$19)),"",SUM('2023-24 Data'!AL$3:AL$19)/SUM('2023-24 Data'!$C$3:$D$19)) -> 0 | U45: 0 | V45: 0
B46: Total Expenditure | D46: =IF($C$4>0,SUM(D13:D45),"") ->  | E46: =IF($C$4>0,SUM(E13:E45),"") ->  | F46: =IF($C$4>0,SUM(F13:F45),"") ->  | H46: =IF($C$4>0,SUM(H13:H45),"") ->  | I46: =IF($C$4>0,SUM(I13:I45),"") ->  | J46: =IF($C$4>0,SUM(J13:J45),"") ->  | L46: =IF($C$4>0,SUM(L13:L45),"") ->  | M46: =IF($C$4>0,SUM(M13:M45),"") ->  | N46: =IF($C$4>0,SUM(N13:N45),"") ->  | P46: =IF($C$4>0,SUM(P13:P45),"") ->  | Q46: =IF($C$4>0,SUM(Q13:Q45),"") ->  | R46: =IF($C$4>0,SUM(R13:R45),"") ->  | T46: =IF(ISERROR(SUM(T13:T45)),"",SUM(T13:T45)) -> 9648.29441 | U46: =IF(ISERROR(SUM(U13:U45)),"",SUM(U13:U45)) -> 1 | V46: =IF(ISERROR(SUM(V13:V45)),"",SUM(V13:V45)) -> 0.01039771251
B48: INCOME
B49: Funds delegated by the LEA | C49: I01 | D49: =IF(ISERROR(INDEX('2023-24 Data'!$B$3:$BJ$19,MATCH($C$4,dfenums,0),MATCH("I01 OTHER",'2023-24 Data'!$B$2:$BJ$2,0))),"",INDEX('2023-24 Data'!$B$3:$BJ$19,MATCH($C$4,dfenums,0),MATCH("I01 OTHER",'2023-24 Data'!$B$2:$BJ$2,0))) ->  | E49: =IF(C4>0,D49/(E4-VLOOKUP(C4,'2023-24 Data'!A3:E19,5,0))) -> FALSE | F49: =IF($C$4>0,D49/$D$72) -> FALSE | H49: =IF(ISERROR(INDEX('2023-24 Data'!$B$3:$BJ$19,MATCH($H$6,dfenums,0),MATCH("I01 OTHER",'2023-24 Data'!$B$2:$BJ$2,0))),"",INDEX('2023-24 Data'!$B$3:$BJ$19,MATCH($H$6,dfenums,0),MATCH("I01 OTHER",'2023-24 Data'!$B$2:$BJ$2,0))) ->  | I49: =IF(H6>0,H49/(I6-VLOOKUP(H6,'2023-24 Data'!A3:E19,5,0))) -> FALSE | J49: =IF($H$6>0,H49/$H$72) -> FALSE | L49: =IF(ISERROR(INDEX('2023-24 Data'!$B$3:$BJ$19,MATCH($L$6,dfenums,0),MATCH("I01 OTHER",'2023-24 Data'!$B$2:$BJ$2,0))),"",INDEX('2023-24 Data'!$B$3:$BJ$19,MATCH($L$6,dfenums,0),MATCH("I01 OTHER",'2023-24 Data'!$B$2:$BJ$2,0))) ->  | M49: =IF(L6>0,L49/(M6-VLOOKUP(L6,'2023-24 Data'!A3:E19,5,0))) -> FALSE | N49: =IF($L$6>0,L49/$L$72) -> FALSE | P49: =IF(ISERROR(INDEX('2023-24 Data'!$B$3:$BJ$19,MATCH($P$6,dfenums,0),MATCH("I01 OTHER",'2023-24 Data'!$B$2:$BJ$2,0))),"",INDEX('2023-24 Data'!$B$3:$BJ$19,MATCH($P$6,dfenums,0),MATCH("I01 OTHER",'2023-24 Data'!$B$2:$BJ$2,0))) ->  | Q49: =IF(P6>0,P49/(Q6-VLOOKUP(P6,'2023-24 Data'!A3:E19,5,0))) -> FALSE | R49: =IF($P$6>0,P49/$P$72) -> FALSE | T49: =IF(ISERROR(SUM('2023-24 Data'!AM$3:AM$19)/SUM('2023-24 Data'!$C$3:$D$19)),"",SUM('2023-24 Data'!AM$3:AM$19)/SUM('2023-24 Data'!$C$3:$D$19)) -> -5970.528799 | U49: =IF(ISERROR(T49/$T$72),"",T49/$T$72) -> 0.006434281475
B50: Funding for sixth form students | C50: I02 | D50: =IF(ISERROR(INDEX('2023-24 Data'!$B$3:$BJ$19,MATCH($C$4,dfenums,0),MATCH($C50,'2023-24 Data'!$B$2:$BJ$2,0))),"",INDEX('2023-24 Data'!$B$3:$BJ$19,MATCH($C$4,dfenums,0),MATCH($C50,'2023-24 Data'!$B$2:$BJ$2,0))) ->  | E50: =IF(ISERROR(IF($C$4>0,D50/$F$4)),0,IF($C$4>0,D50/$F$4)) -> FALSE | F50: =IF($C$4>0,D50/$D$72) -> FALSE | H50: =IF(ISERROR(INDEX('2023-24 Data'!$B$3:$BJ$19,MATCH($H$6,dfenums,0),MATCH($C50,'2023-24 Data'!$B$2:$BJ$2,0))),"",INDEX('2023-24 Data'!$B$3:$BJ$19,MATCH($H$6,dfenums,0),MATCH($C50,'2023-24 Data'!$B$2:$BJ$2,0))) ->  | I50: =IF($H$6>0,H50/$J$6) -> FALSE | J50: =IF($H$6>0,H50/$H$72) -> FALSE | L50: =IF(ISERROR(INDEX('2023-24 Data'!$B$3:$BJ$19,MATCH($L$6,dfenums,0),MATCH($C50,'2023-24 Data'!$B$2:$BJ$2,0))),"",INDEX('2023-24 Data'!$B$3:$BJ$19,MATCH($L$6,dfenums,0),MATCH($C50,'2023-24 Data'!$B$2:$BJ$2,0))) ->  | M50: =IF($L$6>0,L50/$N$6) -> FALSE | N50: =IF($L$6>0,L50/$L$72) -> FALSE | P50: =IF(ISERROR(INDEX('2023-24 Data'!$B$3:$BJ$19,MATCH($P$6,dfenums,0),MATCH($C50,'2023-24 Data'!$B$2:$BJ$2,0))),"",INDEX('2023-24 Data'!$B$3:$BJ$19,MATCH($P$6,dfenums,0),MATCH($C50,'2023-24 Data'!$B$2:$BJ$2,0))) ->  | Q50: =IF($P$6>0,P50/$R$6) -> FALSE | R50: =IF($P$6>0,P50/$P$72) -> FALSE | T50: =IF(ISERROR(SUM('2023-24 Data'!AQ$3:AQ$19)/SUM('2023-24 Data'!$D$3:$D$19)),"",SUM('2023-24 Data'!AQ$3:AQ$19)/SUM('2023-24 Data'!$D$3:$D$19)) -> -920032.8383 | U50: =IF(ISERROR(T50/$T$72),"",T50/$T$72) -> 0.9914951333
B51: Notional SEN budget | C51: I01 | D51: =IF(ISERROR(INDEX('2023-24 Data'!$B$3:$BJ$19,MATCH($C$4,dfenums,0),MATCH($B51,'2023-24 Data'!$B$2:$BJ$2,0))),"",INDEX('2023-24 Data'!$B$3:$BJ$19,MATCH($C$4,dfenums,0),MATCH($B51,'2023-24 Data'!$B$2:$BJ$2,0))) ->  | E51: =IF($C$4>0,D51/$E$4) -> FALSE | F51: =IF($C$4>0,D51/$D$72) -> FALSE | H51: =IF(ISERROR(INDEX('2023-24 Data'!$B$3:$BJ$19,MATCH($H$6,dfenums,0),MATCH($B51,'2023-24 Data'!$B$2:$BJ$2,0))),"",INDEX('2023-24 Data'!$B$3:$BJ$19,MATCH($H$6,dfenums,0),MATCH($B51,'2023-24 Data'!$B$2:$BJ$2,0))) ->  | I51: =IF($P$6>0,H51/$I$6) -> FALSE | J51: =IF($H$6>0,H51/$H$72) -> FALSE | L51: =IF(ISERROR(INDEX('2023-24 Data'!$B$3:$BJ$19,MATCH($L$6,dfenums,0),MATCH($B51,'2023-24 Data'!$B$2:$BJ$2,0))),"",INDEX('2023-24 Data'!$B$3:$BJ$19,MATCH($L$6,dfenums,0),MATCH($B51,'2023-24 Data'!$B$2:$BJ$2,0))) ->  | M51: =IF($P$6>0,L51/$M$6) -> FALSE | N51: =IF($L$6>0,L51/$L$72) -> FALSE | P51: =IF(ISERROR(INDEX('2023-24 Data'!$B$3:$BJ$19,MATCH($P$6,dfenums,0),MATCH($B51,'2023-24 Data'!$B$2:$BJ$2,0))),"",INDEX('2023-24 Data'!$B$3:$BJ$19,MATCH($P$6,dfenums,0),MATCH($B51,'2023-24 Data'!$B$2:$BJ$2,0))) ->  | Q51: =IF($P$6>0,P51/$Q$6) -> FALSE | R51: =IF($P$6>0,P51/$P$72) -> FALSE | T51: =IF(ISERROR(SUM('2023-24 Data'!AN$3:AN$19)/SUM('2023-24 Data'!$C$3:$D$19)),"",SUM('2023-24 Data'!AN$3:AN$19)/SUM('2023-24 Data'!$C$3:$D$19)) -> -867.8741609 | U51: 0.0009352851018
B52: SRP Funding | C52: I01 & I03 | D52: =IF(ISERROR(INDEX('2023-24 Data'!$B$3:$BJ$19,MATCH($C$4,dfenums,0),MATCH("Unit Funding",'2023-24 Data'!$B$2:$BJ$2,0))),"",INDEX('2023-24 Data'!$B$3:$BJ$19,MATCH($C$4,dfenums,0),MATCH("Unit Funding",'2023-24 Data'!$B$2:$BJ$2,0))) ->  | E52: Meaningful comparison is not possible in this area
B53: High Needs Pupils Funding | C53: I01 & I03 | D53: =IF(ISERROR(INDEX('2023-24 Data'!$B$3:$BJ$19,MATCH($C$4,dfenums,0),MATCH("HNP Funding",'2023-24 Data'!$B$2:$BJ$2,0))),"",INDEX('2023-24 Data'!$B$3:$BJ$19,MATCH($C$4,dfenums,0),MATCH("HNP Funding",'2023-24 Data'!$B$2:$BJ$2,0))) -> 
B54: Funding for minority ethnic pupils | C54: I04 | D54: =IF(ISERROR(INDEX('2023-24 Data'!$B$3:$BJ$19,MATCH($C$4,dfenums,0),MATCH($C54,'2023-24 Data'!$B$2:$BJ$2,0))),"",INDEX('2023-24 Data'!$B$3:$BJ$19,MATCH($C$4,dfenums,0),MATCH($C54,'2023-24 Data'!$B$2:$BJ$2,0))) ->  | E54: =IF($C$4>0,D54/($E$4+$F$4),"") ->  | F54: =IF($C$4>0,D54/$D$72,"") ->  | H54: =IF(ISERROR(INDEX('2023-24 Data'!$B$3:$BJ$19,MATCH($H$6,dfenums,0),MATCH($C54,'2023-24 Data'!$B$2:$BJ$2,0))),"",INDEX('2023-24 Data'!$B$3:$BJ$19,MATCH($H$6,dfenums,0),MATCH($C54,'2023-24 Data'!$B$2:$BJ$2,0))) ->  | I54: =IF($H$6>0,H54/($I$6+$J$6),"") ->  | J54: =IF($H$6>0,H54/$H$72,"") ->  | L54: =IF(ISERROR(INDEX('2023-24 Data'!$B$3:$BJ$19,MATCH($L$6,dfenums,0),MATCH($C54,'2023-24 Data'!$B$2:$BJ$2,0))),"",INDEX('2023-24 Data'!$B$3:$BJ$19,MATCH($L$6,dfenums,0),MATCH($C54,'2023-24 Data'!$B$2:$BJ$2,0))) ->  | M54: =IF($L$6>0,L54/($M$6+$N$6),"") ->  | N54: =IF($L$6>0,L54/$L$72,"") ->  | P54: =IF(ISERROR(INDEX('2023-24 Data'!$B$3:$BJ$19,MATCH($P$6,dfenums,0),MATCH($C54,'2023-24 Data'!$B$2:$BJ$2,0))),"",INDEX('2023-24 Data'!$B$3:$BJ$19,MATCH($P$6,dfenums,0),MATCH($C54,'2023-24 Data'!$B$2:$BJ$2,0))) ->  | Q54: =IF($P$6>0,P54/($Q$6+$R$6),"") ->  | R54: =IF($P$6>0,P54/$P$72,"") ->  | T54: =IF(ISERROR(SUM('2023-24 Data'!AR$3:AR$19)/SUM('2023-24 Data'!$C$3:$D$19)),"",SUM('2023-24 Data'!AR$3:AR$19)/SUM('2023-24 Data'!$C$3:$D$19)) -> -3.931099364 | U54: 4.236442142e-06
B55: Pupil Premium | C55: I05 | D55: =IF(ISERROR(INDEX('2023-24 Data'!$B$3:$BJ$19,MATCH($C$4,dfenums,0),MATCH($C55,'2023-24 Data'!$B$2:$BJ$2,0))),"",INDEX('2023-24 Data'!$B$3:$BJ$19,MATCH($C$4,dfenums,0),MATCH($C55,'2023-24 Data'!$B$2:$BJ$2,0))) ->  | E55: =IF($C$4>0,D55/($E$4+$F$4),"") ->  | F55: =IF($C$4>0,D55/$D$72,"") ->  | H55: =IF(ISERROR(INDEX('2023-24 Data'!$B$3:$BJ$19,MATCH($H$6,dfenums,0),MATCH($C55,'2023-24 Data'!$B$2:$BJ$2,0))),"",INDEX('2023-24 Data'!$B$3:$BJ$19,MATCH($H$6,dfenums,0),MATCH($C55,'2023-24 Data'!$B$2:$BJ$2,0))) ->  | I55: =IF($H$6>0,H55/($I$6+$J$6),"") ->  | J55: =IF($H$6>0,H55/$H$72,"") ->  | L55: =IF(ISERROR(INDEX('2023-24 Data'!$B$3:$BJ$19,MATCH($L$6,dfenums,0),MATCH($C55,'2023-24 Data'!$B$2:$BJ$2,0))),"",INDEX('2023-24 Data'!$B$3:$BJ$19,MATCH($L$6,dfenums,0),MATCH($C55,'2023-24 Data'!$B$2:$BJ$2,0))) ->  | M55: =IF($L$6>0,L55/($M$6+$N$6),"") ->  | N55: =IF($L$6>0,L55/$L$72,"") ->  | P55: =IF(ISERROR(INDEX('2023-24 Data'!$B$3:$BJ$19,MATCH($P$6,dfenums,0),MATCH($C55,'2023-24 Data'!$B$2:$BJ$2,0))),"",INDEX('2023-24 Data'!$B$3:$BJ$19,MATCH($P$6,dfenums,0),MATCH($C55,'2023-24 Data'!$B$2:$BJ$2,0))) ->  | Q55: =IF($P$6>0,P55/($Q$6+$R$6),"") ->  | R55: =IF($P$6>0,P55/$P$72,"") ->  | T55: =IF(ISERROR(SUM('2023-24 Data'!AS$3:AS$19)/SUM('2023-24 Data'!$C$3:$D$19)),"",SUM('2023-24 Data'!AS$3:AS$19)/SUM('2023-24 Data'!$C$3:$D$19)) -> -234.6216352 | U55: 0.0002528455504
B56: Other government grants | C56: I06 | D56: =IF(ISERROR(INDEX('2023-24 Data'!$B$3:$BJ$19,MATCH($C$4,dfenums,0),MATCH($C56,'2023-24 Data'!$B$2:$BJ$2,0))),"",INDEX('2023-24 Data'!$B$3:$BJ$19,MATCH($C$4,dfenums,0),MATCH($C56,'2023-24 Data'!$B$2:$BJ$2,0))) ->  | H56: =IF(ISERROR(INDEX('2023-24 Data'!$B$3:$BJ$19,MATCH($H$6,dfenums,0),MATCH($C56,'2023-24 Data'!$B$2:$BJ$2,0))),"",INDEX('2023-24 Data'!$B$3:$BJ$19,MATCH($H$6,dfenums,0),MATCH($C56,'2023-24 Data'!$B$2:$BJ$2,0))) ->  | L56: =IF(ISERROR(INDEX('2023-24 Data'!$B$3:$BJ$19,MATCH($L$6,dfenums,0),MATCH($C56,'2023-24 Data'!$B$2:$BJ$2,0))),"",INDEX('2023-24 Data'!$B$3:$BJ$19,MATCH($L$6,dfenums,0),MATCH($C56,'2023-24 Data'!$B$2:$BJ$2,0))) ->  | P56: =IF(ISERROR(INDEX('2023-24 Data'!$B$3:$BJ$19,MATCH($P$6,dfenums,0),MATCH($C56,'2023-24 Data'!$B$2:$BJ$2,0))),"",INDEX('2023-24 Data'!$B$3:$BJ$19,MATCH($P$6,dfenums,0),MATCH($C56,'2023-24 Data'!$B$2:$BJ$2,0))) ->  | T56: =IF(ISERROR(SUM('2023-24 Data'!AT$3:AT$19)/SUM('2023-24 Data'!$C$3:$D$19)),"",SUM('2023-24 Data'!AT$3:AT$19)/SUM('2023-24 Data'!$C$3:$D$19)) -> -97.6168652 | U56: 0.000105199122
B57: Other grants and payments | C57: I07 | D57: =IF(ISERROR(INDEX('2023-24 Data'!$B$3:$BJ$19,MATCH($C$4,dfenums,0),MATCH($C57,'2023-24 Data'!$B$2:$BJ$2,0))),"",INDEX('2023-24 Data'!$B$3:$BJ$19,MATCH($C$4,dfenums,0),MATCH($C57,'2023-24 Data'!$B$2:$BJ$2,0))) ->  | H57: =IF(ISERROR(INDEX('2023-24 Data'!$B$3:$BJ$19,MATCH($H$6,dfenums,0),MATCH($C57,'2023-24 Data'!$B$2:$BJ$2,0))),"",INDEX('2023-24 Data'!$B$3:$BJ$19,MATCH($H$6,dfenums,0),MATCH($C57,'2023-24 Data'!$B$2:$BJ$2,0))) ->  | L57: =IF(ISERROR(INDEX('2023-24 Data'!$B$3:$BJ$19,MATCH($L$6,dfenums,0),MATCH($C57,'2023-24 Data'!$B$2:$BJ$2,0))),"",INDEX('2023-24 Data'!$B$3:$BJ$19,MATCH($L$6,dfenums,0),MATCH($C57,'2023-24 Data'!$B$2:$BJ$2,0))) ->  | P57: =IF(ISERROR(INDEX('2023-24 Data'!$B$3:$BJ$19,MATCH($P$6,dfenums,0),MATCH($C57,'2023-24 Data'!$B$2:$BJ$2,0))),"",INDEX('2023-24 Data'!$B$3:$BJ$19,MATCH($P$6,dfenums,0),MATCH($C57,'2023-24 Data'!$B$2:$BJ$2,0))) ->  | T57: =IF(ISERROR(SUM('2023-24 Data'!AU$3:AU$19)/SUM('2023-24 Data'!$C$3:$D$19)),"",SUM('2023-24 Data'!AU$3:AU$19)/SUM('2023-24 Data'!$C$3:$D$19)) -> -91.33891161 | U57: 9.843353691e-05
B58: Income from facilities and services | C58: I08 | D58: =IF(ISERROR(INDEX('2023-24 Data'!$B$3:$BJ$19,MATCH($C$4,dfenums,0),MATCH($C58,'2023-24 Data'!$B$2:$BJ$2,0))),"",INDEX('2023-24 Data'!$B$3:$BJ$19,MATCH($C$4,dfenums,0),MATCH($C58,'2023-24 Data'!$B$2:$BJ$2,0))) ->  | E58: =IF($C$4>0,D58/($E$4+$F$4),"") ->  | F58: =IF($C$4>0,D58/$D$72,"") ->  | H58: =IF(ISERROR(INDEX('2023-24 Data'!$B$3:$BJ$19,MATCH($H$6,dfenums,0),MATCH($C58,'2023-24 Data'!$B$2:$BJ$2,0))),"",INDEX('2023-24 Data'!$B$3:$BJ$19,MATCH($H$6,dfenums,0),MATCH($C58,'2023-24 Data'!$B$2:$BJ$2,0))) ->  | I58: =IF($H$6>0,H58/($I$6+$J$6),"") ->  | J58: =IF($H$6>0,H58/$H$72,"") ->  | L58: =IF(ISERROR(INDEX('2023-24 Data'!$B$3:$BJ$19,MATCH($L$6,dfenums,0),MATCH($C58,'2023-24 Data'!$B$2:$BJ$2,0))),"",INDEX('2023-24 Data'!$B$3:$BJ$19,MATCH($L$6,dfenums,0),MATCH($C58,'2023-24 Data'!$B$2:$BJ$2,0))) ->  | M58: =IF($L$6>0,L58/($M$6+$N$6),"") ->  | N58: =IF($L$6>0,L58/$L$72,"") ->  | P58: =IF(ISERROR(INDEX('2023-24 Data'!$B$3:$BJ$19,MATCH($P$6,dfenums,0),MATCH($C58,'2023-24 Data'!$B$2:$BJ$2,0))),"",INDEX('2023-24 Data'!$B$3:$BJ$19,MATCH($P$6,dfenums,0),MATCH($C58,'2023-24 Data'!$B$2:$BJ$2,0))) ->  | Q58: =IF($P$6>0,P58/($Q$6+$R$6),"") ->  | R58: =IF($P$6>0,P58/$P$72,"") ->  | T58: =IF(ISERROR(SUM('2023-24 Data'!AW$3:AW$19)/SUM('2023-24 Data'!$C$3:$D$19)),"",SUM('2023-24 Data'!AW$3:AW$19)/SUM('2023-24 Data'!$C$3:$D$19)) -> -72.2622769 | U58: =IF(ISERROR(T58/$T$72),"",T58/$T$72) -> 7.787515063e-05
B59: Income from facilities and services | C59: I08b | D59: =IF(ISERROR(INDEX('2023-24 Data'!$B$3:$BJ$19,MATCH($C$4,dfenums,0),MATCH($C59,'2023-24 Data'!$B$2:$BJ$2,0))),"",INDEX('2023-24 Data'!$B$3:$BJ$19,MATCH($C$4,dfenums,0),MATCH($C59,'2023-24 Data'!$B$2:$BJ$2,0))) ->  | H59: =IF(ISERROR(INDEX('2023-24 Data'!$B$3:$BJ$19,MATCH($H$6,dfenums,0),MATCH($C59,'2023-24 Data'!$B$2:$BJ$2,0))),"",INDEX('2023-24 Data'!$B$3:$BJ$19,MATCH($H$6,dfenums,0),MATCH($C59,'2023-24 Data'!$B$2:$BJ$2,0))) ->  | L59: =IF(ISERROR(INDEX('2023-24 Data'!$B$3:$BJ$19,MATCH($L$6,dfenums,0),MATCH($C59,'2023-24 Data'!$B$2:$BJ$2,0))),"",INDEX('2023-24 Data'!$B$3:$BJ$19,MATCH($L$6,dfenums,0),MATCH($C59,'2023-24 Data'!$B$2:$BJ$2,0))) ->  | P59: =IF(ISERROR(INDEX('2023-24 Data'!$B$3:$BJ$19,MATCH($P$6,dfenums,0),MATCH($C59,'2023-24 Data'!$B$2:$BJ$2,0))),"",INDEX('2023-24 Data'!$B$3:$BJ$19,MATCH($P$6,dfenums,0),MATCH($C59,'2023-24 Data'!$B$2:$BJ$2,0))) ->  | T59: =IF(ISERROR(SUM('2023-24 Data'!AW$3:AW$19)/SUM('2023-24 Data'!$C$3:$D$19)),"",SUM('2023-24 Data'!AW$3:AW$19)/SUM('2023-24 Data'!$C$3:$D$19)) -> -72.2622769 | U59: 7.787515063e-05
B60: Income from catering | C60: I09 | D60: =IF(ISERROR(INDEX('2023-24 Data'!$B$3:$BJ$19,MATCH($C$4,dfenums,0),MATCH($C60,'2023-24 Data'!$B$2:$BJ$2,0))),"",INDEX('2023-24 Data'!$B$3:$BJ$19,MATCH($C$4,dfenums,0),MATCH($C60,'2023-24 Data'!$B$2:$BJ$2,0))) ->  | H60: =IF(ISERROR(INDEX('2023-24 Data'!$B$3:$BJ$19,MATCH($H$6,dfenums,0),MATCH($C60,'2023-24 Data'!$B$2:$BJ$2,0))),"",INDEX('2023-24 Data'!$B$3:$BJ$19,MATCH($H$6,dfenums,0),MATCH($C60,'2023-24 Data'!$B$2:$BJ$2,0))) ->  | L60: =IF(ISERROR(INDEX('2023-24 Data'!$B$3:$BJ$19,MATCH($L$6,dfenums,0),MATCH($C60,'2023-24 Data'!$B$2:$BJ$2,0))),"",INDEX('2023-24 Data'!$B$3:$BJ$19,MATCH($L$6,dfenums,0),MATCH($C60,'2023-24 Data'!$B$2:$BJ$2,0))) ->  | P60: =IF(ISERROR(INDEX('2023-24 Data'!$B$3:$BJ$19,MATCH($P$6,dfenums,0),MATCH($C60,'2023-24 Data'!$B$2:$BJ$2,0))),"",INDEX('2023-24 Data'!$B$3:$BJ$19,MATCH($P$6,dfenums,0),MATCH($C60,'2023-24 Data'!$B$2:$BJ$2,0))) ->  | T60: =IF(ISERROR(SUM('2023-24 Data'!AX$3:AX$19)/SUM('2023-24 Data'!$C$3:$D$19)),"",SUM('2023-24 Data'!AX$3:AX$19)/SUM('2023-24 Data'!$C$3:$D$19)) -> -117.4963809 | U60: 0.0001266227519
B61: Receipts from supply teachers insurance claims | C61: I10 | D61: =IF(ISERROR(INDEX('2023-24 Data'!$B$3:$BJ$19,MATCH($C$4,dfenums,0),MATCH($C61,'2023-24 Data'!$B$2:$BJ$2,0))),"",INDEX('2023-24 Data'!$B$3:$BJ$19,MATCH($C$4,dfenums,0),MATCH($C61,'2023-24 Data'!$B$2:$BJ$2,0))) ->  | H61: =IF(ISERROR(INDEX('2023-24 Data'!$B$3:$BJ$19,MATCH($H$6,dfenums,0),MATCH($C61,'2023-24 Data'!$B$2:$BJ$2,0))),"",INDEX('2023-24 Data'!$B$3:$BJ$19,MATCH($H$6,dfenums,0),MATCH($C61,'2023-24 Data'!$B$2:$BJ$2,0))) ->  | L61: =IF(ISERROR(INDEX('2023-24 Data'!$B$3:$BJ$19,MATCH($L$6,dfenums,0),MATCH($C61,'2023-24 Data'!$B$2:$BJ$2,0))),"",INDEX('2023-24 Data'!$B$3:$BJ$19,MATCH($L$6,dfenums,0),MATCH($C61,'2023-24 Data'!$B$2:$BJ$2,0))) ->  | P61: =IF(ISERROR(INDEX('2023-24 Data'!$B$3:$BJ$19,MATCH($P$6,dfenums,0),MATCH($C61,'2023-24 Data'!$B$2:$BJ$2,0))),"",INDEX('2023-24 Data'!$B$3:$BJ$19,MATCH($P$6,dfenums,0),MATCH($C61,'2023-24 Data'!$B$2:$BJ$2,0))) ->  | T61: =IF(ISERROR(SUM('2023-24 Data'!AY$3:AY$19)/SUM('2023-24 Data'!$C$3:$D$19)),"",SUM('2023-24 Data'!AY$3:AY$19)/SUM('2023-24 Data'!$C$3:$D$19)) -> -1.016315518 | U61: 1.095256439e-06
B62: Receipts from other insurance claims | C62: I11 | D62: =IF(ISERROR(INDEX('2023-24 Data'!$B$3:$BJ$19,MATCH($C$4,dfenums,0),MATCH($C62,'2023-24 Data'!$B$2:$BJ$2,0))),"",INDEX('2023-24 Data'!$B$3:$BJ$19,MATCH($C$4,dfenums,0),MATCH($C62,'2023-24 Data'!$B$2:$BJ$2,0))) ->  | H62: =IF(ISERROR(INDEX('2023-24 Data'!$B$3:$BJ$19,MATCH($H$6,dfenums,0),MATCH($C62,'2023-24 Data'!$B$2:$BJ$2,0))),"",INDEX('2023-24 Data'!$B$3:$BJ$19,MATCH($H$6,dfenums,0),MATCH($C62,'2023-24 Data'!$B$2:$BJ$2,0))) ->  | L62: =IF(ISERROR(INDEX('2023-24 Data'!$B$3:$BJ$19,MATCH($L$6,dfenums,0),MATCH($C62,'2023-24 Data'!$B$2:$BJ$2,0))),"",INDEX('2023-24 Data'!$B$3:$BJ$19,MATCH($L$6,dfenums,0),MATCH($C62,'2023-24 Data'!$B$2:$BJ$2,0))) ->  | P62: =IF(ISERROR(INDEX('2023-24 Data'!$B$3:$BJ$19,MATCH($P$6,dfenums,0),MATCH($C62,'2023-24 Data'!$B$2:$BJ$2,0))),"",INDEX('2023-24 Data'!$B$3:$BJ$19,MATCH($P$6,dfenums,0),MATCH($C62,'2023-24 Data'!$B$2:$BJ$2,0))) ->  | T62: =IF(ISERROR(SUM('2023-24 Data'!AZ$3:AZ$19)/SUM('2023-24 Data'!$C$3:$D$19)),"",SUM('2023-24 Data'!AZ$3:AZ$19)/SUM('2023-24 Data'!$C$3:$D$19)) -> -15.44753651 | U62: 1.664740283e-05
B63: Income from contributions to visits etc. | C63: I12 | D63: =IF(ISERROR(INDEX('2023-24 Data'!$B$3:$BJ$19,MATCH($C$4,dfenums,0),MATCH($C63,'2023-24 Data'!$B$2:$BJ$2,0))),"",INDEX('2023-24 Data'!$B$3:$BJ$19,MATCH($C$4,dfenums,0),MATCH($C63,'2023-24 Data'!$B$2:$BJ$2,0))) ->  | H63: =IF(ISERROR(INDEX('2023-24 Data'!$B$3:$BJ$19,MATCH($H$6,dfenums,0),MATCH($C63,'2023-24 Data'!$B$2:$BJ$2,0))),"",INDEX('2023-24 Data'!$B$3:$BJ$19,MATCH($H$6,dfenums,0),MATCH($C63,'2023-24 Data'!$B$2:$BJ$2,0))) ->  | L63: =IF(ISERROR(INDEX('2023-24 Data'!$B$3:$BJ$19,MATCH($L$6,dfenums,0),MATCH($C63,'2023-24 Data'!$B$2:$BJ$2,0))),"",INDEX('2023-24 Data'!$B$3:$BJ$19,MATCH($L$6,dfenums,0),MATCH($C63,'2023-24 Data'!$B$2:$BJ$2,0))) ->  | P63: =IF(ISERROR(INDEX('2023-24 Data'!$B$3:$BJ$19,MATCH($P$6,dfenums,0),MATCH($C63,'2023-24 Data'!$B$2:$BJ$2,0))),"",INDEX('2023-24 Data'!$B$3:$BJ$19,MATCH($P$6,dfenums,0),MATCH($C63,'2023-24 Data'!$B$2:$BJ$2,0))) ->  | T63: =IF(ISERROR(SUM('2023-24 Data'!BA$3:BA$19)/SUM('2023-24 Data'!$C$3:$D$19)),"",SUM('2023-24 Data'!BA$3:BA$19)/SUM('2023-24 Data'!$C$3:$D$19)) -> -130.9119261 | U63: 0.0001410803313
B64: Donations and/or voluntary funds | C64: I13 | D64: =IF(ISERROR(INDEX('2023-24 Data'!$B$3:$BJ$19,MATCH($C$4,dfenums,0),MATCH($C64,'2023-24 Data'!$B$2:$BJ$2,0))),"",INDEX('2023-24 Data'!$B$3:$BJ$19,MATCH($C$4,dfenums,0),MATCH($C64,'2023-24 Data'!$B$2:$BJ$2,0))) ->  | H64: =IF(ISERROR(INDEX('2023-24 Data'!$B$3:$BJ$19,MATCH($H$6,dfenums,0),MATCH($C64,'2023-24 Data'!$B$2:$BJ$2,0))),"",INDEX('2023-24 Data'!$B$3:$BJ$19,MATCH($H$6,dfenums,0),MATCH($C64,'2023-24 Data'!$B$2:$BJ$2,0))) ->  | L64: =IF(ISERROR(INDEX('2023-24 Data'!$B$3:$BJ$19,MATCH($L$6,dfenums,0),MATCH($C64,'2023-24 Data'!$B$2:$BJ$2,0))),"",INDEX('2023-24 Data'!$B$3:$BJ$19,MATCH($L$6,dfenums,0),MATCH($C64,'2023-24 Data'!$B$2:$BJ$2,0))) ->  | P64: =IF(ISERROR(INDEX('2023-24 Data'!$B$3:$BJ$19,MATCH($P$6,dfenums,0),MATCH($C64,'2023-24 Data'!$B$2:$BJ$2,0))),"",INDEX('2023-24 Data'!$B$3:$BJ$19,MATCH($P$6,dfenums,0),MATCH($C64,'2023-24 Data'!$B$2:$BJ$2,0))) ->  | T64: =IF(ISERROR(SUM('2023-24 Data'!BB$3:BB$19)/SUM('2023-24 Data'!$C$3:$D$19)),"",SUM('2023-24 Data'!BB$3:BB$19)/SUM('2023-24 Data'!$C$3:$D$19)) -> -137.2431229 | U64: 0.0001479032952
B65: Pupil focussed extended school funding &/or grants | C65: I15 | D65: =IF(ISERROR(INDEX('2023-24 Data'!$B$3:$BJ$19,MATCH($C$4,dfenums,0),MATCH($C65,'2023-24 Data'!$B$2:$BJ$2,0))),"",INDEX('2023-24 Data'!$B$3:$BJ$19,MATCH($C$4,dfenums,0),MATCH($C65,'2023-24 Data'!$B$2:$BJ$2,0))) ->  | H65: =IF(ISERROR(INDEX('2023-24 Data'!$B$3:$BJ$19,MATCH($H$6,dfenums,0),MATCH($C65,'2023-24 Data'!$B$2:$BJ$2,0))),"",INDEX('2023-24 Data'!$B$3:$BJ$19,MATCH($H$6,dfenums,0),MATCH($C65,'2023-24 Data'!$B$2:$BJ$2,0))) ->  | L65: =IF(ISERROR(INDEX('2023-24 Data'!$B$3:$BJ$19,MATCH($L$6,dfenums,0),MATCH($C65,'2023-24 Data'!$B$2:$BJ$2,0))),"",INDEX('2023-24 Data'!$B$3:$BJ$19,MATCH($L$6,dfenums,0),MATCH($C65,'2023-24 Data'!$B$2:$BJ$2,0))) ->  | P65: =IF(ISERROR(INDEX('2023-24 Data'!$B$3:$BJ$19,MATCH($P$6,dfenums,0),MATCH($C65,'2023-24 Data'!$B$2:$BJ$2,0))),"",INDEX('2023-24 Data'!$B$3:$BJ$19,MATCH($P$6,dfenums,0),MATCH($C65,'2023-24 Data'!$B$2:$BJ$2,0))) ->  | T65: =IF(ISERROR(SUM('2023-24 Data'!BC$3:BC$19)/SUM('2023-24 Data'!$C$3:$D$19)),"",SUM('2023-24 Data'!BC$3:BC$19)/SUM('2023-24 Data'!$C$3:$D$19)) -> 0 | U65: 0
B66: Com focussed extended school funding &/or grants | C66: I16 | D66: =IF(ISERROR(INDEX('2023-24 Data'!$B$3:$BJ$19,MATCH($C$4,dfenums,0),MATCH($C66,'2023-24 Data'!$B$2:$BJ$2,0))),"",INDEX('2023-24 Data'!$B$3:$BJ$19,MATCH($C$4,dfenums,0),MATCH($C66,'2023-24 Data'!$B$2:$BJ$2,0))) ->  | H66: =IF(ISERROR(INDEX('2023-24 Data'!$B$3:$BJ$19,MATCH($H$6,dfenums,0),MATCH($C66,'2023-24 Data'!$B$2:$BJ$2,0))),"",INDEX('2023-24 Data'!$B$3:$BJ$19,MATCH($H$6,dfenums,0),MATCH($C66,'2023-24 Data'!$B$2:$BJ$2,0))) ->  | L66: =IF(ISERROR(INDEX('2023-24 Data'!$B$3:$BJ$19,MATCH($L$6,dfenums,0),MATCH($C66,'2023-24 Data'!$B$2:$BJ$2,0))),"",INDEX('2023-24 Data'!$B$3:$BJ$19,MATCH($L$6,dfenums,0),MATCH($C66,'2023-24 Data'!$B$2:$BJ$2,0))) ->  | P66: =IF(ISERROR(INDEX('2023-24 Data'!$B$3:$BJ$19,MATCH($P$6,dfenums,0),MATCH($C66,'2023-24 Data'!$B$2:$BJ$2,0))),"",INDEX('2023-24 Data'!$B$3:$BJ$19,MATCH($P$6,dfenums,0),MATCH($C66,'2023-24 Data'!$B$2:$BJ$2,0))) ->  | T66: =IF(ISERROR(SUM('2023-24 Data'!BD$3:BD$19)/SUM('2023-24 Data'!$C$3:$D$19)),"",SUM('2023-24 Data'!BD$3:BD$19)/SUM('2023-24 Data'!$C$3:$D$19)) -> 0 | U66: 0
B67: Com focussed extended school facilities income | C67: I17 | D67: =IF(ISERROR(INDEX('2023-24 Data'!$B$3:$BJ$19,MATCH($C$4,dfenums,0),MATCH($C67,'2023-24 Data'!$B$2:$BJ$2,0))),"",INDEX('2023-24 Data'!$B$3:$BJ$19,MATCH($C$4,dfenums,0),MATCH($C67,'2023-24 Data'!$B$2:$BJ$2,0))) ->  | H67: =IF(ISERROR(INDEX('2023-24 Data'!$B$3:$BJ$19,MATCH($H$6,dfenums,0),MATCH($C67,'2023-24 Data'!$B$2:$BJ$2,0))),"",INDEX('2023-24 Data'!$B$3:$BJ$19,MATCH($H$6,dfenums,0),MATCH($C67,'2023-24 Data'!$B$2:$BJ$2,0))) ->  | L67: =IF(ISERROR(INDEX('2023-24 Data'!$B$3:$BJ$19,MATCH($L$6,dfenums,0),MATCH($C67,'2023-24 Data'!$B$2:$BJ$2,0))),"",INDEX('2023-24 Data'!$B$3:$BJ$19,MATCH($L$6,dfenums,0),MATCH($C67,'2023-24 Data'!$B$2:$BJ$2,0))) ->  | P67: =IF(ISERROR(INDEX('2023-24 Data'!$B$3:$BJ$19,MATCH($P$6,dfenums,0),MATCH($C67,'2023-24 Data'!$B$2:$BJ$2,0))),"",INDEX('2023-24 Data'!$B$3:$BJ$19,MATCH($P$6,dfenums,0),MATCH($C67,'2023-24 Data'!$B$2:$BJ$2,0))) ->  | T67: =IF(ISERROR(SUM('2023-24 Data'!BE$3:BE$19)/SUM('2023-24 Data'!$C$3:$D$19)),"",SUM('2023-24 Data'!BE$3:BE$19)/SUM('2023-24 Data'!$C$3:$D$19)) -> 0 | U67: 0
B68: Additional Grant for Schools | C68: I18 | D68: =IF(ISERROR(INDEX('2023-24 Data'!$B$3:$BJ$19,MATCH($C$4,dfenums,0),MATCH($C68,'2023-24 Data'!$B$2:$BJ$2,0))),"",INDEX('2023-24 Data'!$B$3:$BJ$19,MATCH($C$4,dfenums,0),MATCH($C68,'2023-24 Data'!$B$2:$BJ$2,0))) ->  | H68: =IF(ISERROR(INDEX('2023-24 Data'!$B$3:$BJ$19,MATCH($H$6,dfenums,0),MATCH($C68,'2023-24 Data'!$B$2:$BJ$2,0))),"",INDEX('2023-24 Data'!$B$3:$BJ$19,MATCH($H$6,dfenums,0),MATCH($C68,'2023-24 Data'!$B$2:$BJ$2,0))) ->  | L68: =IF(ISERROR(INDEX('2023-24 Data'!$B$3:$BJ$19,MATCH($L$6,dfenums,0),MATCH($C68,'2023-24 Data'!$B$2:$BJ$2,0))),"",INDEX('2023-24 Data'!$B$3:$BJ$19,MATCH($L$6,dfenums,0),MATCH($C68,'2023-24 Data'!$B$2:$BJ$2,0))) ->  | P68: =IF(ISERROR(INDEX('2023-24 Data'!$B$3:$BJ$19,MATCH($P$6,dfenums,0),MATCH($C68,'2023-24 Data'!$B$2:$BJ$2,0))),"",INDEX('2023-24 Data'!$B$3:$BJ$19,MATCH($P$6,dfenums,0),MATCH($C68,'2023-24 Data'!$B$2:$BJ$2,0))) ->  | T68: =IF(ISERROR(SUM('2023-24 Data'!BF$3:BF$19)/SUM('2023-24 Data'!$C$3:$D$19)),"",SUM('2023-24 Data'!BF$3:BF$19)/SUM('2023-24 Data'!$C$3:$D$19)) -> -5.464631305 | U68: 5.889089084e-06
B69: Covid-19 furloughed Staff | C69: I18A | D69: =IF(ISERROR(INDEX('2023-24 Data'!$B$3:$BJ$19,MATCH($C$4,dfenums,0),MATCH($C69,'2023-24 Data'!$B$2:$BJ$2,0))),"",INDEX('2023-24 Data'!$B$3:$BJ$19,MATCH($C$4,dfenums,0),MATCH($C69,'2023-24 Data'!$B$2:$BJ$2,0))) ->  | E69: =IF($C$4>0,D69/($E$4+$F$4),"") ->  | F69: =IF($C$4>0,D69/$D$72,"") ->  | H69: =IF(ISERROR(INDEX('2023-24 Data'!$B$3:$BJ$19,MATCH($H$6,dfenums,0),MATCH($C69,'2023-24 Data'!$B$2:$BJ$2,0))),"",INDEX('2023-24 Data'!$B$3:$BJ$19,MATCH($H$6,dfenums,0),MATCH($C69,'2023-24 Data'!$B$2:$BJ$2,0))) ->  | I69: =IF($H$6>0,H69/($I$6+$J$6),"") ->  | J69: =IF($H$6>0,H69/$H$72,"") ->  | L69: =IF(ISERROR(INDEX('2023-24 Data'!$B$3:$BJ$19,MATCH($L$6,dfenums,0),MATCH($C69,'2023-24 Data'!$B$2:$BJ$2,0))),"",INDEX('2023-24 Data'!$B$3:$BJ$19,MATCH($L$6,dfenums,0),MATCH($C69,'2023-24 Data'!$B$2:$BJ$2,0))) ->  | M69: =IF($L$6>0,L69/($M$6+$N$6),"") ->  | N69: =IF($L$6>0,L69/$L$72,"") ->  | P69: =IF(ISERROR(INDEX('2023-24 Data'!$B$3:$BJ$19,MATCH($P$6,dfenums,0),MATCH($C69,'2023-24 Data'!$B$2:$BJ$2,0))),"",INDEX('2023-24 Data'!$B$3:$BJ$19,MATCH($P$6,dfenums,0),MATCH($C69,'2023-24 Data'!$B$2:$BJ$2,0))) ->  | Q69: =IF($P$6>0,P69/($Q$6+$R$6),"") ->  | R69: =IF($P$6>0,P69/$P$72,"") ->  | T69: =IF(ISERROR(SUM('2023-24 Data'!BG$3:BG$19)/SUM('2023-24 Data'!$C$3:$D$19)),"",SUM('2023-24 Data'!BG$3:BG$19)/SUM('2023-24 Data'!$C$3:$D$19)) -> 0 | U69: =IF(ISERROR(T69/$T$72),"",T69/$T$72) -> 0
B70: Covid-19 any other Covid-19 related grant | C70: I18B | D70: =IF(ISERROR(INDEX('2023-24 Data'!$B$3:$BJ$19,MATCH($C$4,dfenums,0),MATCH($C70,'2023-24 Data'!$B$2:$BJ$2,0))),"",INDEX('2023-24 Data'!$B$3:$BJ$19,MATCH($C$4,dfenums,0),MATCH($C70,'2023-24 Data'!$B$2:$BJ$2,0))) ->  | E70: =IF($C$4>0,D70/($E$4+$F$4),"") ->  | F70: =IF($C$4>0,D70/$D$72,"") ->  | H70: =IF(ISERROR(INDEX('2023-24 Data'!$B$3:$BJ$19,MATCH($H$6,dfenums,0),MATCH($C70,'2023-24 Data'!$B$2:$BJ$2,0))),"",INDEX('2023-24 Data'!$B$3:$BJ$19,MATCH($H$6,dfenums,0),MATCH($C70,'2023-24 Data'!$B$2:$BJ$2,0))) ->  | I70: =IF($H$6>0,H70/($I$6+$J$6),"") ->  | J70: =IF($H$6>0,H70/$H$72,"") ->  | L70: =IF(ISERROR(INDEX('2023-24 Data'!$B$3:$BJ$19,MATCH($L$6,dfenums,0),MATCH($C70,'2023-24 Data'!$B$2:$BJ$2,0))),"",INDEX('2023-24 Data'!$B$3:$BJ$19,MATCH($L$6,dfenums,0),MATCH($C70,'2023-24 Data'!$B$2:$BJ$2,0))) ->  | M70: =IF($L$6>0,L70/($M$6+$N$6),"") ->  | N70: =IF($L$6>0,L70/$L$72,"") ->  | P70: =IF(ISERROR(INDEX('2023-24 Data'!$B$3:$BJ$19,MATCH($P$6,dfenums,0),MATCH($C70,'2023-24 Data'!$B$2:$BJ$2,0))),"",INDEX('2023-24 Data'!$B$3:$BJ$19,MATCH($P$6,dfenums,0),MATCH($C70,'2023-24 Data'!$B$2:$BJ$2,0))) ->  | Q70: =IF($P$6>0,P70/($Q$6+$R$6),"") ->  | R70: =IF($P$6>0,P70/$P$72,"") ->  | T70: =IF(ISERROR(SUM('2023-24 Data'!BH$3:BH$19)/SUM('2023-24 Data'!$C$3:$D$19)),"",SUM('2023-24 Data'!BH$3:BH$19)/SUM('2023-24 Data'!$C$3:$D$19)) -> 0 | U70: =IF(ISERROR(T70/$T$72),"",T70/$T$72) -> 0
B71: Covid-19 £1bn package | C71: I18C | D71: =IF(ISERROR(INDEX('2023-24 Data'!$B$3:$BJ$19,MATCH($C$4,dfenums,0),MATCH($C71,'2023-24 Data'!$B$2:$BJ$2,0))),"",INDEX('2023-24 Data'!$B$3:$BJ$19,MATCH($C$4,dfenums,0),MATCH($C71,'2023-24 Data'!$B$2:$BJ$2,0))) ->  | H71: =IF(ISERROR(INDEX('2023-24 Data'!$B$3:$BJ$19,MATCH($H$6,dfenums,0),MATCH($C71,'2023-24 Data'!$B$2:$BJ$2,0))),"",INDEX('2023-24 Data'!$B$3:$BJ$19,MATCH($H$6,dfenums,0),MATCH($C71,'2023-24 Data'!$B$2:$BJ$2,0))) ->  | L71: =IF(ISERROR(INDEX('2023-24 Data'!$B$3:$BJ$19,MATCH($L$6,dfenums,0),MATCH($C71,'2023-24 Data'!$B$2:$BJ$2,0))),"",INDEX('2023-24 Data'!$B$3:$BJ$19,MATCH($L$6,dfenums,0),MATCH($C71,'2023-24 Data'!$B$2:$BJ$2,0))) ->  | P71: =IF(ISERROR(INDEX('2023-24 Data'!$B$3:$BJ$19,MATCH($P$6,dfenums,0),MATCH($C71,'2023-24 Data'!$B$2:$BJ$2,0))),"",INDEX('2023-24 Data'!$B$3:$BJ$19,MATCH($P$6,dfenums,0),MATCH($C71,'2023-24 Data'!$B$2:$BJ$2,0))) ->  | T71: =IF(ISERROR(SUM('2023-24 Data'!BI$3:BI$19)/SUM('2023-24 Data'!$C$3:$D$19)),"",SUM('2023-24 Data'!BI$3:BI$19)/SUM('2023-24 Data'!$C$3:$D$19)) -> -73.86007056 | U71: 7.959705073e-05
B72: Total Income (excluding reserves and high needs) | D72: =IF($C$4>0,SUM(D49:D51)+SUM(D54:D71),"") ->  | E72: =IF($C$4>0,SUM(E49:E71),"") ->  | F72: =IF($C$4>0,SUM(F49:F71),"") ->  | H72: =IF($H$6>0,SUM(H49:H51)+SUM(H54:H71),"") ->  | I72: =IF($H$6>0,SUM(I49:I71),"") ->  | J72: =IF($H$6>0,SUM(J49:J71),"") ->  | L72: =IF($L$6>0,SUM(L49:L51)+SUM(L54:L71),"") ->  | M72: =IF($L$6>0,SUM(M49:M71),"") ->  | N72: =IF($L$6>0,SUM(N49:N71),"") ->  | P72: =IF($P$6>0,SUM(P49:P51)+SUM(P54:P71),"") ->  | Q72: =IF($P$6>0,SUM(Q49:Q71),"") ->  | R72: =IF($P$6>0,SUM(R49:R71),"") ->  | T72: =IF(ISERROR(SUM(T49:T71)),"",SUM(T49:T51)+SUM(T54:T71)) -> -927924.7143 | U72: =IF(ISERROR(SUM(U49:U71)),"",SUM(U49:U51)+SUM(U54:U71)) -> 1

Sheet 2023-24 Data (hidden)
B1: PFI School | C1: =Benchmarking!C1&" School Budget Templates" -> 2023-24 School Budget Templates | D1: KCC Finance & Procurement | F1: ="From "&Benchmarking!C1&" Checking Spreadsheet" -> From 2023-24 Checking Spreadsheet | AM1: Self generating | AN1: KCC Finance & Procurement Minus figure | AO1: Self generating HN12, HN3U, HNOU, HNTU & HNUT | AP1: Self generating From Advances HNMT & HN3M | AQ1: =F1 -> From 2023-24 Checking Spreadsheet | BK1: ="From March 20"&RIGHT(Benchmarking!C1,2)&" Advances" -> From March 2024 Advances | BQ1: ="From March 20"&RIGHT(Benchmarking!C1,2)&" Advances" -> From March 2024 Advances
A2: DFE | B2: SCHOOL | C2: 11-16 ROLL | D2: POST-16 ROLL | E2: SRP- ROLL | F2: E01 | G2: E02 | H2: E03 | I2: E04 | J2: E05 | K2: E06 | L2: E07 | M2: E08 | N2: E09 | O2: E10 | P2: E11 | Q2: E12 | R2: E13 | S2: E14 | T2: E15 | U2: E16 | V2: E17 | W2: E18 | X2: E19 | Y2: E20 | Z2: E21 | AA2: E22 | AB2: E23 | AC2: E24 | AD2: E25 | AE2: E26 | AF2: E27 | AG2: E28 | AH2: E28B | AI2: E29 | AJ2: E30 | AK2: E31 | AL2: E32 | AM2: I01 OTHER | AN2: Notional SEN budget | AO2: Unit Funding | AP2: HNP Funding | AQ2: I02 | AR2: I04 | AS2: I05 | AT2: I06 | AU2: I07 | AV2: I08 | AW2: I08b | AX2: I09 | AY2: I10 | AZ2: I11 | BA2: I12 | BB2: I13 | BC2: I15 | BD2: I16 | BE2: I17 | BF2: I18 | BG2: I18A | BH2: I18B | BI2: I18C | BJ2: I01 + I03 | BK2: HN12 | BL2: HN3U | BM2: HNOU | BN2: HNTU | BO2: HNUT | BP2: AN Total | BQ2: HNMT | BR2: HN3M | BS2: AM Total
A3: 4026 | B3: Dartford Science & Technology College | C3: 744 | D3: 0 | E3: 0 | F3: 3485000.09 | G3: 25179.66 | H3: 872934.01 | I3: 196394.85 | J3: 362911.21 | K3: 0 | L3: 3173.05 | M3: 16371.56 | N3: 20419.7 | O3: 1544.1 | P3: 3935.04 | Q3: 87818.73 | R3: 19417.06 | S3: 16383.43 | T3: 11234.39 | U3: 222745.62 | V3: 244480 | W3: 49792.49 | X3: 186705.25 | Y3: 44406.96 | Z3: 85855.44 | AA3: 73325.93 | AB3: 23398.76 | AC3: 609 | AD3: 65408.1 | AE3: 49956.63 | AF3: 77982.01 | AG3: 41984.56 | AH3: 0 | AI3: 0 | AJ3: 256904.25 | AK3: 0 | AL3: 0 | AM3: =BJ3-AN3-AO3-AP3 -> -4479116.1 | AN3: -584920.29 | AO3: =BP3 -> 0 | AP3: =BS3 -> -153887.3 | AQ3: -727958.47 | AR3: 0 | AS3: -186072.93 | AT3: -56308.18 | AU3: -46778 | AV3: -99206.92 | AW3: -43082.79 | AX3: 0 | AY3: 0 | AZ3: 0 | BA3: 0 | BB3: -42373.75 | BC3: 0 | BD3: 0 | BE3: 0 | BF3: 0 | BG3: 0 | BH3: 0 | BI3: -37653.75 | BJ3: -5217923.69 | BK3: 0 | BL3: 0 | BM3: 0 | BN3: 0 | BO3: 0 | BP3: =-SUM(BK3:BO3) -> 0 | BQ3: 0 | BR3: 153887.3 | BS3: =-SUM(BQ3:BR3) -> -153887.3
A4: 4040 | B4: Northfleet School for Girls | C4: 1007 | D4: 0 | E4: 0 | F4: 4659056.18 | G4: 0 | H4: 1191043.09 | I4: 200343.29 | J4: 412343.27 | K4: 177580.87 | L4: 46240.84 | M4: 54257.52 | N4: 59318.89 | O4: 2014 | P4: 37598.16 | Q4: 256995.08 | R4: 19363.42 | S4: 214495.09 | T4: 16661.83 | U4: 194304.13 | V4: 33280 | W4: 30653.3 | X4: 495863.65 | Y4: 158940.02 | Z4: 177736.48 | AA4: 57343.71 | AB4: 33419.8 | AC4: 33876.27 | AD4: 353283.02 | AE4: 218398.98 | AF4: 133072.08 | AG4: 28481.9 | AH4: 0 | AI4: 15743.78 | AJ4: 0 | AK4: 0 | AL4: 0 | AM4: -5576743.02 | AN4: -1152336.08 | AO4: =BP4 -> 0 | AP4: =BS4 -> -33566.94 | AQ4: -1260366.24 | AR4: 0 | AS4: -375392.84 | AT4: -111124.32 | AU4: -132809.83 | AV4: -61441.05 | AW4: -58142.76 | AX4: -371036.58 | AY4: 0 | AZ4: -20494.32 | BA4: -172857.85 | BB4: -70224.1 | BC4: 0 | BD4: 0 | BE4: 0 | BF4: 0 | BG4: 0 | BH4: 0 | BI4: -133610.01 | BJ4: -6762646.04 | BK4: 0 | BL4: 0 | BM4: 0 | BN4: 0 | BO4: 0 | BP4: =-SUM(BK4:BO4) -> 0 | BQ4: 0 | BR4: 33566.94 | BS4: =-SUM(BQ4:BR4) -> -33566.94
A5: 4043 | B5: Tunbridge Wells Girls' Grammar School | C5: 732 | D5: 0 | E5: 0 | F5: 3793501.47 | G5: 0 | H5: 533047.87 | I5: 93954.53 | J5: 388648.28 | K5: 0 | L5: 1192.64 | M5: 26605.09 | N5: 17801.19 | O5: 1464 | P5: 27755.4 | Q5: 90889.84 | R5: 40438.7 | S5: 145722.09 | T5: 9102.33 | U5: 186849.76 | V5: 58368 | W5: 45847.03 | X5: 604765.11 | Y5: 90242.18 | Z5: 116829.76 | AA5: 36376.11 | AB5: 25992.6 | AC5: 0 | AD5: 13262.28 | AE5: 786.24 | AF5: 83522.5 | AG5: 38929.07 | AH5: 0 | AI5: 0 | AJ5: 0 | AK5: 0 | AL5: 0 | AM5: -3995881.64 | AN5: -416276.49 | AO5: 0 | AP5: -93671.27 | AQ5: -1363981.74 | AR5: 0 | AS5: -21405 | AT5: -50004.65 | AU5: -55713.97 | AV5: 0 | AW5: -4568.57 | AX5: -15000 | AY5: 0 | AZ5: 0 | BA5: 0 | BB5: -496570.3 | BC5: 0 | BD5: 0 | BE5: 0 | BF5: 0 | BG5: 0 | BH5: 0 | BI5: -9268.63 | BJ5: -4505829.4 | BK5: 0 | BL5: 0 | BM5: 0 | BN5: 0 | BO5: 0 | BP5: 0 | BQ5: 0 | BR5: 93671.27 | BS5: -93671.27
A6: 4045 | B6: Tunbridge Wells Grammar School for Boys | C6: 1293 | D6: 0 | E6: 0 | F6: 5488737.91 | G6: 0 | H6: 912307.95 | I6: 129053.66 | J6: 779963.98 | K6: 0 | L6: 46723.63 | M6: 67627.81 | N6: 19460.13 | O6: 2586 | P6: 7377.24 | Q6: 293075.84 | R6: 37168.76 | S6: 233192.93 | T6: 442.74 | U6: 374661.41 | V6: 166400 | W6: 59128.96 | X6: 892192.33 | Y6: 214871.63 | Z6: 171158.55 | AA6: 79669.11 | AB6: 43565 | AC6: 1974.34 | AD6: 32415.09 | AE6: 98333.93 | AF6: 59104.08 | AG6: 68524.11 | AH6: 0 | AI6: 50785.06 | AJ6: 70351 | AK6: 0 | AL6: 0 | AM6: -7184700.09 | AN6: -838211.58 | AO6: 0 | AP6: -11632.4 | AQ6: -1714372.35 | AR6: 0 | AS6: -87840 | AT6: -94283.02 | AU6: -3583.95 | AV6: -88030.52 | AW6: -32039.91 | AX6: -25000 | AY6: 0 | AZ6: 0 | BA6: -550818.49 | BB6: -151673.7 | BC6: 0 | BD6: 0 | BE6: 0 | BF6: 0 | BG6: 0 | BH6: 0 | BI6: -28219.62 | BJ6: -8034544.07 | BK6: 0 | BL6: 0 | BM6: 0 | BN6: 0 | BO6: 0 | BP6: 0 | BQ6: 0 | BR6: 11632.4 | BS6: -11632.4
A7: 4109 | B7: Dover Grammar School for Girls | C7: 675 | D7: 0 | E7: 0 | F7: 3637182.21 | G7: 5913.95 | H7: 474766.32 | I7: 180572.25 | J7: 364245.4 | K7: 0 | L7: 13833.75 | M7: 22203.21 | N7: 13377.14 | O7: 1350 | P7: 25241.76 | Q7: 26180.54 | R7: 11320.37 | S7: 19610.78 | T7: 16843.99 | U7: 90858.2 | V7: 92672 | W7: 18567.41 | X7: 282149.01 | Y7: 74787.63 | Z7: 89071.17 | AA7: 46706.88 | AB7: 22559.16 | AC7: 0 | AD7: 53047.06 | AE7: 39965 | AF7: 67076.33 | AG7: 45811.4 | AH7: 0 | AI7: 1481.53 | AJ7: 0 | AK7: 0 | AL7: 0 | AM7: -3788547.19 | AN7: -335739.49 | AO7: 0 | AP7: -37500.31 | AQ7: -1122041.5 | AR7: 0 | AS7: -126276 | AT7: -74640.39 | AU7: -20629.45 | AV7: 0 | AW7: -23326.62 | AX7: 0 | AY7: 0 | AZ7: -42006.79 | BA7: -118347.12 | BB7: -28705.43 | BC7: 0 | BD7: 0 | BE7: 0 | BF7: 0 | BG7: 0 | BH7: 0 | BI7: -42204.88 | BJ7: -4161786.99 | BK7: 0 | BL7: 0 | BM7: 0 | BN7: 0 | BO7: 0 | BP7: 0 | BQ7: 0 | BR7: 37500.31 | BS7: -37500.31
A8: 4522 | B8: Maidstone Grammar School | C8: 1050 | D8: 0 | E8: 0 | F8: 4766785.45 | G8: 0 | H8: 732360.12 | I8: 204408.21 | J8: 399553.36 | K8: 0 | L8: 22484.27 | M8: 59397.82 | N8: 35459.77 | O8: 2100 | P8: 40323.19 | Q8: 139790.44 | R8: 83286.98 | S8: 172178.34 | T8: 34966.49 | U8: 253075.59 | V8: 45056 | W8: 64251.21 | X8: 586014.58 | Y8: 208867.46 | Z8: 200089.25 | AA8: 142758.44 | AB8: 48108.11 | AC8: 78617.15 | AD8: 430519.32 | AE8: 36874.84 | AF8: 45588.51 | AG8: 56204.1 | AH8: 0 | AI8: 0 | AJ8: 439479.03 | AK8: 0 | AL8: 0 | AM8: -5662154.52 | AN8: -629784.48 | AO8: 0 | AP8: -2242.95 | AQ8: -2031801.31 | AR8: 0 | AS8: -81575 | AT8: -64635 | AU8: -720 | AV8: -102405.31 | AW8: -50782.09 | AX8: -381095.26 | AY8: 0 | AZ8: -5186.9 | BA8: -293592.18 | BB8: -134017.12 | BC8: 0 | BD8: 0 | BE8: 0 | BF8: 0 | BG8: 0 | BH8: 0 | BI8: -15144.88 | BJ8: -6294181.95 | BK8: 0 | BL8: 0 | BM8: 0 | BN8: 0 | BO8: 0 | BP8: 0 | BQ8: 0 | BR8: 2242.95 | BS8: -2242.95
A9: 4523 | B9: Maidstone Grammar School for Girls | C9: 862 | D9: 0 | E9: 0 | F9: 4193280.99 | G9: 0 | H9: 582152.23 | I9: 104950.86 | J9: 523944.22 | K9: 0 | L9: 16874.53 | M9: 56136.82 | N9: 21997.83 | O9: 1724 | P9: 32473.68 | Q9: 58682.59 | R9: 14247.42 | S9: 191942.8 | T9: 48287.95 | U9: 354025.83 | V9: 35328 | W9: 42568.44 | X9: 396212.21 | Y9: 73728.69 | Z9: 157970.77 | AA9: 64293.44 | AB9: 29764.64 | AC9: 314125.13 | AD9: 42324.98 | AE9: 97224.16 | AF9: 52247.9 | AG9: 54452.35 | AH9: 0 | AI9: 0 | AJ9: 335580.7 | AK9: 0 | AL9: 0 | AM9: -4774023.55 | AN9: -475810.4 | AO9: 0 | AP9: 0 | AQ9: -1611401 | AR9: 0 | AS9: -96260 | AT9: -54928.93 | AU9: -245246.55 | AV9: -355840.69 | AW9: 0 | AX9: -10674.05 | AY9: 0 | AZ9: -20248.31 | BA9: -215828.3 | BB9: -11250.25 | BC9: 0 | BD9: 0 | BE9: 0 | BF9: 0 | BG9: 0 | BH9: 0 | BI9: -25084.65 | BJ9: -5249833.95 | BK9: 0 | BL9: 0 | BM9: 0 | BN9: 0 | BO9: 0 | BP9: 0 | BQ9: 0 | BR9: 0 | BS9: 0
A10: 4534 | B10: Simon Langton Girls' Grammar School | C10: 880 | D10: 0 | E10: 0 | F10: 4641333.99 | G10: 18682.87 | H10: 637982.33 | I10: 129712.26 | J10: 487961.28 | K10: 121953.65 | L10: 43207.42 | M10: 19115.05 | N10: 27589.61 | O10: 1760 | P10: 5711.04 | Q10: 51939.21 | R10: 31775.06 | S10: 132108.97 | T10: 27553.05 | U10: 188834.56 | V10: 256637.98 | W10: 49275.65 | X10: 523284.11 | Y10: 46242.38 | Z10: 143961.02 | AA10: 67581.78 | AB10: 31573.64 | AC10: 0 | AD10: 271899.09 | AE10: 0 | AF10: 21515.5 | AG10: 54733.32 | AH10: 0 | AI10: 0 | AJ10: 221099.97 | AK10: 0 | AL10: 0 | AM10: -4988138.2 | AN10: -509895.8 | AO10: 0 | AP10: -37283.02 | AQ10: -1847091.97 | AR10: 0 | AS10: -86155 | AT10: -74007.93 | AU10: -14221.15 | AV10: -34890.7 | AW10: -30834.64 | AX10: -348953.61 | AY10: 0 | AZ10: -1508.04 | BA10: 0 | BB10: -313755.81 | BC10: 0 | BD10: 0 | BE10: 0 | BF10: 0 | BG10: 0 | BH10: 0 | BI10: -15290 | BJ10: -5535317.02 | BK10: 0 | BL10: 0 | BM10: 0 | BN10: 0 | BO10: 0 | BP10: 0 | BQ10: 0 | BR10: 37283.02 | BS10: -37283.02
A11: 4622 | B11: Judd School, The | C11: 952 | D11: 0.3333333333 | E11: 18.75 | F11: 5655855.17 | G11: 1063.84 | H11: 1051268.46 | I11: 464336.01 | J11: 532823.4 | K11: 0 | L11: 0 | M11: 49533.76 | N11: 27097.78 | O11: 1904 | P11: 0 | Q11: 198831.56 | R11: 80027.13 | S11: 25543.37 | T11: 23320.06 | U11: 253849.28 | V11: 54272 | W11: 23022.01 | X11: 1378770.63 | Y11: 56301.2 | Z11: 220194.44 | AA11: 58330.39 | AB11: 44901.58 | AC11: 0 | AD11: 48983.82 | AE11: 74873.88 | AF11: 250 | AG11: 95060.54 | AH11: 0 | AI11: 11194.91 | AJ11: 0 | AK11: 0 | AL11: 0 | AM11: -5170876.1 | AN11: -576051.3 | AO11: -320388 | AP11: -14477.22 | AQ11: -2897646.28 | AR11: 0 | AS11: -30905 | AT11: -65794.7 | AU11: -2040 | AV11: -37351.28 | AW11: -438464.94 | AX11: -25000 | AY11: 0 | AZ11: -3844 | BA11: 0 | BB11: -678403.76 | BC11: 0 | BD11: 0 | BE11: 0 | BF11: 0 | BG11: 0 | BH11: 0 | BI11: -16300.14 | BJ11: -6081792.62 | BK11: 0 | BL11: 189054.67 | BM11: 9333.33 | BN11: 122000 | BO11: 0 | BP11: -320388 | BQ11: 0 | BR11: 14477.22 | BS11: -14477.22
A12: 5407 | B12: Thamesview School | C12: 872 | D12: 0 | E12: 5.583333333 | F12: 3506215.2 | G12: 0 | H12: 1139880.85 | I12: 38056.17 | J12: 388786.13 | K12: 0 | L12: 65685.13 | M12: 54723.63 | N12: 57523.5 | O12: 1744 | P12: 31306.92 | Q12: 262080.2589 | R12: 39467.93641 | S12: 84.07 | T12: 17751.70184 | U12: 17112.37 | V12: 45568 | W12: 14042.15 | X12: 238247.17 | Y12: 125552.42 | Z12: 104517.07 | AA12: 51419.65 | AB12: 89347.76217 | AC12: 26177.79 | AD12: 69237.12 | AE12: 285711.1 | AF12: 231134.7 | AG12: 1816679.361 | AH12: 0 | AI12: 0 | AJ12: 27480.87 | AK12: 0 | AL12: 0 | AM12: -6047440.53 | AN12: -1139189.13 | AO12: -132563.71 | AP12: -107710.91 | AQ12: -335206.63 | AR12: 0 | AS12: -396855.5 | AT12: -82855.3 | AU12: -113273.21 | AV12: -2047.65 | AW12: 0 | AX12: 0 | AY12: 0 | AZ12: -18674.96 | BA12: -1320 | BB12: 0 | BC12: 0 | BD12: 0 | BE12: 0 | BF12: 0 | BG12: 0 | BH12: 0 | BI12: -141330.79 | BJ12: -7426904.28 | BK12: 0 | BL12: 66563.71 | BM12: 12000 | BN12: 54000 | BO12: 0 | BP12: -132563.71 | BQ12: 0 | BR12: 107710.91 | BS12: -107710.91
A13: 5412 | B13: Simon Langton Grammar School for Boys | C13: 782 | D13: 6.5 | E13: 31 | F13: 4917510.14 | G13: 0 | H13: 906885.59 | I13: 292156.74 | J13: 364348.05 | K13: 203358.01 | L13: 54877.92 | M13: 32891.52 | N13: 25549.73 | O13: 1564 | P13: 30139.2 | Q13: 177773.77 | R13: 48463.28 | S13: 15125.61 | T13: 37957.89 | U13: 226299.4 | V13: 32256 | W13: 50058.81 | X13: 513240.76 | Y13: 247811.77 | Z13: 124851.41 | AA13: 81559.96 | AB13: 35770.55 | AC13: 251955.37 | AD13: 234234.71 | AE13: 13427.13 | AF13: 22514.79 | AG13: 122691.37 | AH13: 0 | AI13: 52930.03 | AJ13: 31990.74 | AK13: 0 | AL13: 0 | AM13: -4302613.65 | AN13: -448357.17 | AO13: -564580.78 | AP13: -34706.32 | AQ13: -2649995.48 | AR13: 0 | AS13: -53600 | AT13: -88206.76 | AU13: -50020.55 | AV13: -114396.39 | AW13: -163034.3 | AX13: -358367.23 | AY13: -15124.13 | AZ13: 0 | BA13: -302213.65 | BB13: -746.94 | BC13: 0 | BD13: 0 | BE13: 0 | BF13: 0 | BG13: 0 | BH13: 0 | BI13: -28127.51 | BJ13: -5350257.92 | BK13: 15000 | BL13: 339580.78 | BM13: 0 | BN13: 210000 | BO13: 0 | BP13: -564580.78 | BQ13: 0 | BR13: 34706.32 | BS13: -34706.32
A14: 5425 | B14: Malling School, The | C14: 903 | D14: 18 | E14: 102.6666667 | F14: 5276151.34 | G14: 4609.39 | H14: 1269885.77 | I14: 0 | J14: 444176.54 | K14: 0 | L14: 31032.27 | M14: 29164.61 | N14: 41924.04 | O14: 1806 | P14: 32923.56 | Q14: 138391.263 | R14: 54487.10299 | S14: 146.58 | T14: 24680.83969 | U14: 0 | V14: 33792 | W14: 6760.35 | X14: 465568.76 | Y14: 102997.54 | Z14: 130000 | AA14: 45223.31 | AB14: 64464.72597 | AC14: 1354964.396 | AD14: 10875.32 | AE14: 1191.01 | AF14: 221458.61 | AG14: 144185.8026 | AH14: 0 | AI14: 0 | AJ14: 0 | AK14: 0 | AL14: 0 | AM14: -5810427.93 | AN14: -880799.08 | AO14: -1394747.99 | AP14: -176074.71 | AQ14: -808522.9 | AR14: 0 | AS14: -258991 | AT14: -216882.45 | AU14: -137304.74 | AV14: -40588.56 | AW14: -12991 | AX14: 0 | AY14: 0 | AZ14: -28463 | BA14: -34760.03 | BB14: -18993.52 | BC14: 0 | BD14: 0 | BE14: 0 | BF14: 0 | BG14: 0 | BH14: 0 | BI14: -146120.41 | BJ14: -8262049.71 | BK14: 15000 | BL14: 647747.99 | BM14: 12000 | BN14: 600000 | BO14: 120000 | BP14: -1394747.99 | BQ14: 0 | BR14: 176074.71 | BS14: -176074.71
A15: 5426 | B15: Archbishop's School, The | C15: 622 | D15: 0.5 | E15: 4.583333333 | F15: 3188282.17 | G15: 52367.48 | H15: 821595.98 | I15: 241011.82 | J15: 388674.35 | K15: 51382.03 | L15: 25932.5 | M15: 15487.31 | N15: 26383.03 | O15: 1244 | P15: 22719.12 | Q15: 44597.49 | R15: 16205.12 | S15: 18008.74 | T15: 16461.53 | U15: 180018.15 | V15: 23961.6 | W15: 29397.75 | X15: 226869.17 | Y15: 68844.72 | Z15: 124002.63 | AA15: 57497.47 | AB15: 19129.4 | AC15: 4504.71 | AD15: 114833.65 | AE15: 202075.89 | AF15: 368663.74 | AG15: 50816.81 | AH15: 0 | AI15: 1037.69 | AJ15: 34409.88 | AK15: 0 | AL15: 0 | AM15: -3863740.01 | AN15: -1020140.63 | AO15: -76814.54 | AP15: -84732.55 | AQ15: -442871.9 | AR15: -58500 | AS15: -349955.39 | AT15: -102507.89 | AU15: -237519.98 | AV15: -11740 | AW15: -25341.31 | AX15: -35676.54 | AY15: 0 | AZ15: -9879.3 | BA15: -42427 | BB15: -57468.64 | BC15: 0 | BD15: 0 | BE15: 0 | BF15: 0 | BG15: 0 | BH15: 0 | BI15: -81086.16 | BJ15: -5045427.73 | BK15: 0 | BL15: 26814.54 | BM15: 8000 | BN15: 42000 | BO15: 0 | BP15: -76814.54 | BQ15: 0 | BR15: 84732.55 | BS15: -84732.55
A16: 5447 | B16: St George's CE Foundation School | C16: 1080 | D16: 0 | E16: 0 | F16: 6199673.35 | G16: 0 | H16: 1407124.6 | I16: 443445.49 | J16: 655414.01 | K16: 204496.72 | L16: 65735 | M16: 51766.32 | N16: 14922.09 | O16: 2992 | P16: 131.25 | Q16: 213619.14 | R16: 21058.45 | S16: 36233.95 | T16: 9072 | U16: 411197.18 | V16: 83345.11 | W16: 49519.71 | X16: 347728.81 | Y16: 185056.04 | Z16: 162882.58 | AA16: 76912.44 | AB16: 54217.11 | AC16: 0 | AD16: 198157.01 | AE16: 144382.11 | AF16: 225378.66 | AG16: 80555.96 | AH16: 0 | AI16: 0 | AJ16: 128257 | AK16: 0 | AL16: 0 | AM16: -7449262.87 | AN16: -1572870.96 | AO16: 0 | AP16: -176888.15 | AQ16: -774865.43 | AR16: 0 | AS16: -665660.66 | AT16: -104063.3 | AU16: -118586.57 | AV16: -43870 | AW16: -60634.97 | AX16: -174564.86 | AY16: 0 | AZ16: -26556.84 | BA16: -37289.64 | BB16: -35 | BC16: 0 | BD16: 0 | BE16: 0 | BF16: -81321 | BG16: 0 | BH16: 0 | BI16: -147921.72 | BJ16: -9199021.98 | BK16: 0 | BL16: 0 | BM16: 0 | BN16: 0 | BO16: 0 | BP16: 0 | BQ16: 0 | BR16: 176888.15 | BS16: -176888.15
A17: 5456 | B17: Northfleet Technology College | C17: 754 | D17: 0 | E17: 0 | F17: 3766988.44 | G17: 17369.52 | H17: 940971.94 | I17: 0 | J17: 365889.46 | K17: 0 | L17: 0 | M17: 52481.18 | N17: 48055.14 | O17: 1508 | P17: 27657.12 | Q17: 105484.5008 | R17: 24488.03617 | S17: 152962.54 | T17: 14082.29218 | U17: 177548.44 | V17: 44937.75 | W17: 12053.65 | X17: 199378.97 | Y17: 88989.93 | Z17: 132157.28 | AA17: 44564.09 | AB17: 43424.01617 | AC17: 1056962.606 | AD17: 104884.83 | AE17: 94182.47 | AF17: 119633.28 | AG17: 53815.15868 | AH17: 0 | AI17: 0 | AJ17: 149882.99 | AK17: 0 | AL17: 0 | AM17: -5314089.24 | AN17: -970518.05 | AO17: 0 | AP17: -51801.08 | AQ17: -909530.7 | AR17: 0 | AS17: -267297.5 | AT17: -91052.89 | AU17: -82204 | AV17: 0 | AW17: -41917.12 | AX17: 0 | AY17: 0 | AZ17: -28202.19 | BA17: 0 | BB17: 0 | BC17: 0 | BD17: 0 | BE17: 0 | BF17: 0 | BG17: 0 | BH17: 0 | BI17: -98707.62 | BJ17: -6336408.37 | BK17: 0 | BL17: 0 | BM17: 0 | BN17: 0 | BO17: 0 | BP17: 0 | BQ17: 0 | BR17: 51801.08 | BS17: -51801.08
A18: 5459 | B18: Dover Grammar School for Boys | C18: 678 | D18: 0 | E18: 0 | F18: 3446469.08 | G18: 13123.21 | H18: 492752.93 | I18: 209310.75 | J18: 292957.24 | K18: 0 | L18: 0 | M18: 4841.85 | N18: 15697.43 | O18: 1356 | P18: 25249.8 | Q18: 58896.29 | R18: 23843.64 | S18: 6925.28 | T18: 9324.46 | U18: 45046.97 | V18: 17817.99 | W18: 11731.57 | X18: 308961.49 | Y18: 97427.56 | Z18: 99673.6 | AA18: 67076.47 | AB18: 23101.56 | AC18: 18445.34 | AD18: 47539.82 | AE18: 3562 | AF18: 61972 | AG18: 66308.35 | AH18: 0 | AI18: 0 | AJ18: 28034.36 | AK18: 0 | AL18: 0 | AM18: -3708502.9 | AN18: -344017.51 | AO18: 0 | AP18: -35833.17 | AQ18: -819500.86 | AR18: 0 | AS18: -135080 | AT18: -48463.5 | AU18: -15186.84 | AV18: -5995.14 | AW18: -70792.28 | AX18: -3134.68 | AY18: 0 | AZ18: 0 | BA18: -176526.8 | BB18: -37732.31 | BC18: 0 | BD18: 0 | BE18: 0 | BF18: 0 | BG18: 0 | BH18: 0 | BI18: -43838.5 | BJ18: -4088353.58 | BK18: 0 | BL18: 0 | BM18: 0 | BN18: 0 | BO18: 0 | BP18: 0 | BQ18: 0 | BR18: 35833.17 | BS18: -35833.17
A19: 5461 | B19: St John's RC Comprehensive School | C19: 970 | D19: 0 | E19: 0 | F19: 5755953.54 | G19: 0 | H19: 911012.81 | I19: 0 | J19: 249086.64 | K19: 0 | L19: 54996.22 | M19: 40726.8 | N19: 19687.11 | O19: 1940 | P19: 39823.2 | Q19: 161035.8353 | R19: 32155.08588 | S19: 0 | T19: 20208.89358 | U19: 0 | V19: 68324.79 | W19: 14366.96 | X19: 204862.97 | Y19: 155358.87 | Z19: 168905.5 | AA19: 84080.24 | AB19: 105067.8721 | AC19: 1691387.724 | AD19: 13538.4 | AE19: 128324.4 | AF19: 100012.17 | AG19: 104652.6495 | AH19: 0 | AI19: 0 | AJ19: 0 | AK19: 0 | AL19: 0 | AM19: -6733171.7 | AN19: -1020206.24 | AO19: 0 | AP19: -71477.76 | AQ19: -1990343.81 | AR19: 0 | AS19: -272160.94 | AT19: -72909.9 | AU19: -83406 | AV19: 0 | AW19: -19405.73 | AX19: 0 | AY19: 0 | AZ19: -24815.29 | BA19: -2162.95 | BB19: -410.03 | BC19: 0 | BD19: 0 | BE19: 0 | BF19: 0 | BG19: 0 | BH19: 0 | BI19: -89227.06 | BJ19: -7824855.7 | BK19: 0 | BL19: 0 | BM19: 0 | BN19: 0 | BO19: 0 | BP19: 0 | BQ19: 0 | BR19: 71477.76 | BS19: -71477.76
C21: 6 | F21: E01 | G21: E02 | H21: E03 | I21: E04 | J21: E05 | K21: E06 | L21: E07 | M21: E08 | N21: E09 | O21: E10 | P21: E11 | Q21: E12 | R21: E13 | S21: E14 | T21: E15 | U21: E16 | V21: E17 | W21: E18 | X21: E19 | Y21: E20 | Z21: E21 | AA21: E22 | AB21: E23 | AC21: E24 | AD21: E25 | AE21: E26 | AF21: E27 | AG21: E28 | AH21: E28B | AI21: E29 | AJ21: E30 | AK21: E31 | AL21: E32 | AM21: =IF(ISERROR(SUM('2023-24 Data'!AM$3:AM$19)/SUM('2023-24 Data'!$C$3:$D$19)),"",SUM('2023-24 Data'!AM$3:AM$19)/SUM('2023-24 Data'!$C$3:$D$19)) -> -5970.528799 | AN21: -347.207897 | AQ21: I02 | AR21: I04 | AS21: I05 | AT21: I06 | AU21: I07 | AV21: I08 | AW21: I08b | AX21: I09 | AY21: I10 | AZ21: I11 | BA21: I12 | BB21: I13 | BC21: I15 | BD21: I16 | BE21: I17 | BF21: I18 | BG21: I18A | BH21: I18B | BI21: I18C | BJ21: I01 | BK21: I03
C22: 7 | F22: 35 | G22: 36 | H22: 37 | I22: 38 | J22: 39 | K22: 40 | L22: 41 | M22: 42 | N22: 43 | O22: 44 | P22: 45 | Q22: 46 | R22: 47 | S22: 48 | T22: 49 | U22: 50 | V22: 51 | W22: 52 | X22: 53 | Y22: 54 | Z22: 55 | AA22: 56 | AB22: 57 | AC22: 58 | AD22: 59 | AE22: 60 | AF22: 61 | AG22: 62 | AH22: 63 | AI22: 64 | AJ22: 65 | AK22: 66 | AL22: 67 | AQ22: 73 | AR22: 75 | AS22: 76 | AT22: 77 | AU22: 78 | AV22: 79 | AW22: 80 | AX22: 81 | AY22: 82 | AZ22: 83 | BA22: 84 | BB22: 85 | BC22: 87 | BD22: 88 | BE22: 89 | BF22: 90 | BG22: 91 | BH22: 92 | BI22: 93 | BJ22: 72 | BK22: 74
B24: PFI Breakdown | Q24: E12 | R24: E13 | T24: E15 | AB24: E23 | AC24: E24 | AG24: E28 | AH24: E28B
A25: 5407 | B25: Thamesview School | Q25: ='PFI Adjustments'!D16 -> 262080.2589 | R25: ='PFI Adjustments'!E16 -> 39467.93641 | T25: ='PFI Adjustments'!F16 -> 17751.70184 | AB25: ='PFI Adjustments'!G16 -> 89347.76217 | AC25: ='PFI Adjustments'!H16 -> 26177.79 | AG25: ='PFI Adjustments'!I16 -> 1816679.361 | AH25: 0
A26: 5425 | B26: The Malling School | Q26: ='PFI Adjustments'!D17 -> 138391.263 | R26: ='PFI Adjustments'!E17 -> 54487.10299 | T26: ='PFI Adjustments'!F17 -> 24680.83969 | AB26: ='PFI Adjustments'!G17 -> 64464.72597 | AC26: ='PFI Adjustments'!H17 -> 1354964.396 | AG26: ='PFI Adjustments'!I17 -> 144185.8026 | AH26: 0
A27: 5431 | B27: Hugh Christie Technology College | Q27: ='PFI Adjustments'!D18 -> 120972.8884 | R27: ='PFI Adjustments'!E18 -> 43158.92147 | T27: ='PFI Adjustments'!F18 -> 16547.07076 | AB27: ='PFI Adjustments'!G18 -> 70398.48621 | AC27: ='PFI Adjustments'!H18 -> 1458422.38 | AG27: ='PFI Adjustments'!I18 -> 57000.52333 | AH27: 0
A28: 5456 | B28: Northfleet Technology College | Q28: ='PFI Adjustments'!D19 -> 105484.5008 | R28: ='PFI Adjustments'!E19 -> 24488.03617 | T28: ='PFI Adjustments'!F19 -> 14082.29218 | AB28: ='PFI Adjustments'!G19 -> 43424.01617 | AC28: ='PFI Adjustments'!H19 -> 1056962.606 | AG28: ='PFI Adjustments'!I19 -> 53815.15868 | AH28: 0
A29: 5461 | B29: St Johns RC Comprehensive School | Q29: ='PFI Adjustments'!D20 -> 161035.8353 | R29: ='PFI Adjustments'!E20 -> 32155.08588 | T29: ='PFI Adjustments'!F20 -> 20208.89358 | AB29: ='PFI Adjustments'!G20 -> 105067.8721 | AC29: ='PFI Adjustments'!H20 -> 1691387.724 | AG29: ='PFI Adjustments'!I20 -> 104652.6495 | AH29: 0

Sheet PFI Adjustments (hidden)
A1: PFI Breakdown | D1: E12 | E1: E13 | F1: E15 | G1: E23 | H1: E24 | I1: E28
A2: 5407 | B2: Thamesview School | D2: 36735.43 | E2: 0 | F2: 0 | G2: 24595.1 | H2: 26177.79 | I2: 48156.38
A3: 5425 | B3: The Malling School | D3: 44597.49 | E3: 16205.12 | F3: 16461.53 | G3: 19129.4 | H3: 4504.71 | I3: 50816.81
A4: 5431 | B4: Hugh Christie Technology College | D4: 15383.31 | E4: 0 | F4: 0 | G4: 29042.74 | H4: 320449.03 | I4: 25289.76
A5: 5456 | B5: Northfleet Technology College | D5: 3466.34 | E5: 0 | F5: 166.97 | G5: 23043.68 | H5: 0 | I5: 43086.38
A6: 5461 | B6: St Johns RC Comprehensive School | D6: 739 | E6: 0 | F6: 0 | G6: 31442.36 | H6: 0 | I6: 46004.94
K8: Standard percentage figures for 2014-15 to 2017-18
A9: PFI Breakdown | C9: ="E28B total from"&CHAR(10)&" 20"&RIGHT(Benchmarking!C1,5)&CHAR(10)&" Checking Spreadsheet" -> E28B total from 2023-24 Checking Spreadsheet | D9: E12 | E9: E13 | F9: E15 | G9: E23 | H9: E24 | I9: E28 | K9: E12 | L9: E13 | M9: E15 | N9: E23 | O9: E24 | P9: E28 | Q9: Comments
A10: 5407 | B10: Thamesview School | C10: 2115840.11 | D10: =$C10*K10 -> 225344.8289 | E10: 39467.93641 | F10: 17751.70184 | G10: 64752.66217 | H10: 0 | I10: 1768522.981 | K10: 0.1065037135 | L10: 0.01865355337 | M10: 0.008389907043 | N10: 0.03060375964 | O10: 0 | P10: 0.8358490664 | Q10: Supplied by School
A11: 5425 | B11: The Malling School | C11: 1629459.07 | D11: 93793.77303 | E11: 38281.98299 | F11: 8219.309687 | G11: 45335.32597 | H11: 1350459.686 | I11: 93368.99257 | K11: 0.05756129427 | L11: 0.02349367572 | M11: 0.005044195242 | N11: 0.0278223165 | O11: 0.828777912 | P11: 0.05730060625 | Q11: Calculation
A12: 5431 | B12: Hugh Christie Technology College | C12: 1376335.43 | D12: 105589.5784 | E12: 43158.92147 | F12: 16547.07076 | G12: 41355.74621 | H12: 1137973.35 | I12: 31710.76333 | K12: 0.07671791052 | L12: 0.03135785109 | M12: 0.01202255671 | N12: 0.03004772333 | O12: 0.826813962 | P12: 0.02303999639 | Q12: Calculation
A13: 5456 | B13: Northfleet Technology College | C13: 1228493.24 | D13: 102018.1608 | E13: 24488.03617 | F13: 13915.32218 | G13: 20380.33617 | H13: 1056962.606 | I13: 10728.77868 | K13: 0.0830433229 | L13: 0.01993339107 | M13: 0.01132714591 | N13: 0.01658970152 | O13: 0.860373156 | P13: 0.008733282633 | Q13: Supplied by School
A14: 5461 | B14: St Johns RC Comprehensive School | C14: 2036321.76 | D14: 160296.8353 | E14: 32155.08588 | F14: 20208.89358 | G14: 73625.51214 | H14: 1691387.724 | I14: 58647.7095 | K14: 0.07871881468 | L14: 0.01579076869 | M14: 0.009924214324 | N14: 0.03615612895 | O14: 0.8306092666 | P14: 0.02880080676 | Q14: Calculation
A16: 5407 | B16: Thamesview School | D16: =D2+D10 -> 262080.2589 | E16: 39467.93641 | F16: 17751.70184 | G16: 89347.76217 | H16: 26177.79 | I16: 1816679.361
A17: 5425 | B17: The Malling School | D17: 138391.263 | E17: 54487.10299 | F17: 24680.83969 | G17: 64464.72597 | H17: 1354964.396 | I17: 144185.8026
A18: 5431 | B18: Hugh Christie Technology College | D18: 120972.8884 | E18: 43158.92147 | F18: 16547.07076 | G18: 70398.48621 | H18: 1458422.38 | I18: 57000.52333
A19: 5456 | B19: Northfleet Technology College | D19: 105484.5008 | E19: 24488.03617 | F19: 14082.29218 | G19: 43424.01617 | H19: 1056962.606 | I19: 53815.15868
A20: 5461 | B20: St Johns RC Comprehensive School | D20: 161035.8353 | E20: 32155.08588 | F20: 20208.89358 | G20: 105067.8721 | H20: 1691387.724 | I20: 104652.6495
